{"text_format":"1","workbook":"xlsx","n_sheets":14,"sheets":["PRINCIPAL","Check List-CAMESOL","Check List -ROMERO PUERTO","Check List-TURNAVAL","Check List-CAMBEL","Check List-NAVANTIA","Check List-MEYCAGESAL","Check List-EQUIMANSUR","Check List-HIERROS ISLEÑOS","Check List-CRISTALVEN","Check List-TINCASUR","Hoja11","Chek List-EMPSE GROUP","Chek List-AZERTO"],"not_rendered":{"charts":0,"images":14,"macros":1,"external_links":0,"defined_names":48,"comments":0,"pivot_tables":0},"unopened":[],"bounds":{"document_bytes":16777216,"sheet_cells":100000,"rows_first":2000,"rows_last":500,"rows_between":2000,"halvings":0,"cell_chars":16384,"cell_head_chars":4096},"cells_cut":0,"cells_raw":0,"read":"whole","date_system":"1900"}

{"sheet":"PRINCIPAL","index":0,"n_rows":22,"n_cols":10,"rows_kept":22,"cut":false,"hidden":false,"merged":[[19,8,19,9],[20,8,20,9],[8,8,8,9],[13,8,13,9],[14,8,14,9],[15,8,15,9],[16,8,16,9],[17,8,17,9],[18,8,18,9],[3,1,3,8],[9,8,9,9],[10,8,10,9],[11,8,11,9],[12,8,12,9]]}
[]
[]
[]
[null,"PROYECTO I - CURSO 2018/20",null,null,null,null,null,null,null,"SEGUNDO CURSO"]
[null,null,null,null,null,"cheklist"]
[]
[]
[null,null,null,null,null,null,"Porcentaje actividades","Porcentaje conseguido"]
[null,"Alumnado 2020"," ",null,null,null,null," ","ALUMNADO"]
[null,1,0,{"$f":"PorcentajeCompleto","v":0},1,"TINCASUR",{"$f":"PorcentajeCompleto","v":0}]
[null,2,0,{"$f":"'Check List-NAVANTIA'!PorcentajeCompleto","v":0},2,"NAVANTIA",{"$f":"+D11","v":0}]
[null,0,0,{"$f":"'Check List-TURNAVAL'!PorcentajeCompleto","v":0},3,"TURNAVAL",0]
[null,0,0,{"$f":"'Check List-CRISTALVEN'!PorcentajeCompleto","v":0.26229508196721313},4,"CRISTALVEN",{"$f":"+D13","v":0.26229508196721313}]
[null,0,0,{"$f":"'Check List-HIERROS ISLEÑOS'!PorcentajeCompleto","v":0.34920634920634919},5,"HIERROS ISLEÑOS",{"$f":"+D14","v":0.34920634920634919}]
[null,2,0,{"$f":"'Check List-MEYCAGESAL'!PorcentajeCompleto","v":0.34920634920634919},6,"MEYCAGESAL",0.34920634920634919]
[null,1,0,{"$f":"'Check List-CAMBEL'!PorcentajeCompleto","v":0.34920634920634919},7,"CAMBEL",0.34920634920634919]
[null,1,0,{"$f":"'Check List -ROMERO PUERTO'!PorcentajeCompleto","v":0},8,"ROMERO PUERTO",{"$f":"'Check List -ROMERO PUERTO'!PorcentajeCompleto","v":0}]
[null,0,0,{"$f":"'Check List-CAMESOL'!PorcentajeCompleto","v":0.36065573770491804},9,"CAMESOL",0.36065573770491804]
[null,1,0,{"$f":"'Check List-EQUIMANSUR'!PorcentajeCompleto","v":0.34920634920634919},10,"EQUIMANSUR",0.34920634920634919]
[null,0,0,null,11,"AZERTO",{"$f":"'Chek List-AZERTO'!PorcentajeCompleto","v":0}]
[null,0,0,null,12,"EMPSE GROUP",{"$f":"'Chek List-EMPSE GROUP'!PorcentajeCompleto","v":0}]
[null,{"$f":"SUM(B10:B21)","v":8},{"$f":"SUM(C10:C21)","v":0},null,"   "]

{"sheet":"Check List-CAMESOL","index":1,"n_rows":80,"n_cols":7,"rows_kept":80,"cut":false,"hidden":false,"merged":[[5,6,5,7]]}
[null,"FP-DUAL CICLO FORMATIVO DE GRADO MEDIO DE SOLDADURA Y CALDERERÍA"]
[null,"Check List",null,"Porcentaje completado",{"$f":"porcentaje(CheckList)","v":0.36065573770491804}]
[]
[null,"#","Elemento a comprobar\n(doble clic para expandir/colapsar)","Descripciones","Estado\n(doble clic para activar)"]
[]
[null,null,null,null,null,null,"ACTIVIDADES EMPRESA "]
[null,1,"A-1 En la oficina técnica y departamento de producción"," ","R",null,"A:1 Completa: En la oficina técnica"]
[null,"1.1","Realizar tareas con los cajetines de materiales de planos constructivos de la empresa: - identificar las piezas normalizadas en los planos: tornillería, accesorios de tubería, perfiles laminados, materiales – Manejar los catálogos de materiales y accesorios. Definiciones de dimensiones, características del material, aceros inoxidable, al carbono, aluminio, etc.","MEC - TCC","R",null,"A:2 Completa: Acopio materiales"]
[null,"1.2","Realizar croquizado de piezas de productos de calderería y tubería","TCC","R",null,"A:3 Completa: TCC"]
[null,null,null,null,null,null,"A:4 Completa: Opera corte térmico"]
[null,2,"A-2 Acopio de materiales y preparación de materiales"," ","R",null,"A:5 Completa: Mecanizado y conformado"]
[null,"2.1","Identificar el material según sus características y formas comerciales","MEC","R",null,"A:6 Completa: Montaje y soldeo"]
[null,"2.2","Recepción y acopio de materiales atendiendo a las características propias","TCC - MEC","R",null,"Ir a Principal"]
[null,"2.3","Acondicionamiento del área de trabajo atendiendo a las propiedades de los materiales: aislamientos de apoyo, utillaje y herramientas.","MEC-TCC-SAN","R"]
[null,"2.4","Preparación de las piezas teniendo en cuenta los volúmenes y medios de transporte","MEC","R"]
[]
[null,3,"A-3 Trazado y corte"," ","£"]
[null,"3.1"," Identificar el material según sus características y formas comerciales","TCC","£"]
[null,"3.2"," Realizar los trazados necesarios para obtener los productos deseados","TCC","£"]
[null,"3.3","A partir de una chapa plana ser capaz de obtener el producto necesario corriendo las desviaciones de escuadrado o defectos producidos: este trazado se obtiene en un plano bidemensional","TCC","£"]
[null,"3.4"," A partir de tanto de perfiles comerciales como de tuberías realizar trazados en tres dimensiones: teniendo en cuenta el proceso de corte a utilizar deberá tener en cuenta la sangría o grueso derivado del proceso de corte","TCC","£"]
[]
[null,"4","A-4 Operar con equipos de corte térmico tanto manuales, como automáticos"," ","©"]
[null,"4.1","Preparar el equipo de oxicorte manual teniendo en cuenta: la naturaleza del material, el espesor de la pieza.","OXICORTE - SOPLETE","R"]
[null,"4.2","Preparara un equipo de plasma teniendo en cuenta las variables derivadas de: tipo de material, presiones,","EQUIPO DE PLASMA","R"]
[null,"4.3","Preparar un equipo de oxicorte semiautomático regulando: velocidades de avance, presiones","OXICORTE - TANAKA","R"]
[null,"4.4","Preparar todas las medidas de protección tanto colectiva como individual","TCC-MEC","£"]
[null,"4.5","Preparar equipo de corte por control numérico, introduciendo los parámetros determinados para obtener las piezas necesarias optimizando el material.","CORTE POR CNC","R"]
[null,"4.6","    Preparar equipos de corte mecánico o corte frío: CIZALLA","MEC","£"]
[null,"4.7","    Preparar equipos de corte mecánico o corte frío: SIERRA DE CINTA","TCC","£"]
[null,"4.8","    Preparar equipos de corte mecánico o corte frío: TRONZONADORA","TCC","£"]
[null,"4.9","    Preparar equipos de corte mecánico o corte frío:  PUNZONADORA","TCC","R"]
[null,"4.10","    Preparar equipos de corte mecánico o corte frío: AMOLADORA O RADIAL - ANGULAR","MEC","£"]
[null,"4.11","Marcado de los productos obtenidos en base a las especificaciones de los planos y en caso de requisitos de calidad la colada para la trazabilidad.","TCC","£"]
[null,"4.12","Realizar las operaciones de corte térmico a partir de los trazados obtenidos: teniendo en cuenta las deformaciones y defectos, derivados del proceso.","TCC","R"]
[null,"4.13","Realizar operaciones de corte térmico con plasma a partir de los trazados obtenidos: teniendo en cuenta las deformaciones y defectos, derivados del proceso.","TCC","R"]
[null,"4.14","Realizar operaciones de corte por control numérico introduciendo el lenguaje de programación y aplicando los parámetros necesarios para obtener el producto deseado.","TCC","R"]
[null,"4.15","Realizar operaciones de corte mecánico tanto en: sierra de cinta, cizalla, tronzadora, amoladora. Teniendo en cuenta los defectos y calidad de acabado requeridos.","MEC","£"]
[null,"4.16","Marcado de los productos obtenidos en base a las especificaciones de los planos y en caso de requisitos de calidad la colada para la trazabilidad.","TCC","R"]
[]
[null,"5","A-5 Mecanizado y conformado de chapas, perfiles y tubería"," ","£"]
[null,"5.1","A partir de los productos obtenidos de corte, el alumnado debe verificar los productos obtenidos y en caso de haber desviaciones producidas por el corte térmico así como deformaciones plásticas del suministro. Deberá realizar las correcciones necesarias bien por: Enderezado por calor, enderezado en prensa.","MEC-TCC","£"]
[null,"5.2","Preparación de bordes por procesos térmicos: espesor a soldar, geometría de la unión","TCC","£"]
[null,"5.3","    Realizar biselados por medios mecánicos: amolado, biseladora.","TCC","£"]
[null,"5.4","    Realizar operaciones de mecanizado: TALADRADO  ","MEC ","£"]
[null,"5.5","    Realizar operaciones de mecanizado: ROSCADO","MEC","£"]
[null,"5.6","    Realizar operaciones de mecanizado: ESCARIADO","MEC","£"]
[null,"5.7","    Realizar operaciones de mecanizado: AVELLANADO","TCC","£"]
[null,"5.8","Realizar operaciones de desbaste","MEC","£"]
[null,"5.9","Realizar CILINDRADO de chapas de virolas","MEC","£"]
[null,"5.2","Realizar CURVADO de troncos","TCC","£"]
[null,"5.3","Realizar PLEGADO de chapa en prensa plegadora","TCC","£"]
[null,"5.4","Fabricación de utillaje y plantillas necesarias para el proceso de conformado","TCC","£"]
[null,6,"A-6 Montaje de elementos de calderería, tubería y carpintería metálica"," ","R"]
[null,"6.1","Realizar operaciones básicas de soldadura tanto en proceso TIG, MAG, SMAW, que garanticen una correcta fijación de la unión para que el soldador pueda realizar a unión posteriormente: esta unión deberá cumplir con las especificaciones de los WPS y que garantice la correcta separación y alineamiento de la unión.","SAN-SAP","R"]
[null,"6.2","Realizar operaciones básicas de soldadura  proceso SMAW - TRANSFORMADOR O RECTIFICADOR","SAN-SAP","R"]
[null,"6.3","Realizar operaciones básicas de soldadura  proceso SEMIAUTOMÁTICO - GMAW- FCAW","SAN-SAP","R"]
[null,"6.5","Realizar operaciones básicas de soldadura  proceso GTAW","SAN-SAP","R"]
[null,"6.6","Realizar operaciones básicas de soldadura tanto en proceso TIG, MAG, SMAW, que garanticen una correcta fijación de la unión para que el soldador pueda realizar a unión posteriormente: esta unión deberá cumplir con las especificaciones de los WPS y que garantice la correcta separación y alineamiento de la unión.","SAN-SAP","R"]
[null,7,"A-1 En la oficina técnica y departamento de producción"," ","£"]
[null,"7.1","Mediante planos de fabricación el alumno debe relacionar: Sistemas de representaciones - Secciones roturas- Acotaciones","MONTAJE ","£"]
[null,"7.2","Realizar tareas con los cajetines de materiales de planos constructivos de la empresa: - identificar las piezas normalizadas en los planos: tornillería, accesorios de tubería, perfiles laminados, materiales – Manejar los catálogos de materiales y accesorios. Definiciones de dimensiones, características del material, aceros inoxidable, al carbono, aluminio, etc.","MONTAJE","£"]
[null,"7.3","Diferenciar los diferentes tipos de planos: planos de implantación, de conjunto, ortogonales, despiece, isométricos, P&D, As Built.","MONTAJE","£"]
[null,"7.4","Realizar croquizado de piezas de productos de calderería y tubería","MONTAJE","£"]
[null,8,"A-2 Acopio de materiales y preparación de materiales"," ","£"]
[null,"8.1","Recepción y acopio de materiales atendiendo a las características propias","TCC-MEC","£"]
[null,"8.2","Acondicionamiento del área de trabajo atendiendo a las propiedades de los materiales: aislamientos de apoyo, utillaje y herramientas.","TCC-MEC","£"]
[null,8,"A-6 Montaje de elementos de calderería, tubería y carpintería metálica"," ","©"]
[null,"8.1","Identificar los materiales prefabricados y acopiados atendiendo a las marcas de los planos y especificaciones de fabricación","MONTAJE ","£"]
[null,"8.2","Preparación de bancadas, plantillas, utillaje, esperas o derivados que sirvan para montaje","MONTAJE","£"]
[null,"8.1","Movimiento de cargas conociendo las características como pesos y geometrías de las cargas a mover, para su correcto eslingados e izado","MONTAJE","£"]
[null,"8.2","Manejo de puentes grúa o enganchador de cargas para su montaje. Atendiendo a la seguridad colectiva y personal","MONTAJE","£"]
[null,"8.1","Realizar el replanteos atendiendo a puntos de referencia, coordenadas, elevaciones, etc","MONTAJE","£"]
[null,"8.2","Realizar aplomes, nivelaciones, y las operaciones necesarias, que garanticen el correcto montaje de los elementos atendiendo a la normativa de calidad que recoja las tolerancias. Deberá incluir soportación auxiliar si fuera necesario, además de aplicar un correcto manejo de los elementos de elevación u posicionamiento, tales como grúas, polipastos, tensores, gatos, etc..","MONTAJE","£"]
[null,"8.1","Realizar operaciones de uniones soldadas y si es necesario utilizar utillaje como tensores, polipastos, gatos, etc.","MONTAJE","£"]
[null,"8.2","Conocimiento de los tipos de elementos de elevación auxiliar tales como andamios y carretillas elevadoras","MONTAJE","£"]
[null,"8.1","Realizar pruebas de estanquidad que garanticen los marcados CE o los estándares de calidad requeridos","MONTAJE","£"]
[null,"8.2","Conocimiento de los tratamientos superficiales que garantice el servicios y eviten la oxidación tales como: acabados de pintura, galvanizados, etc.","MONTAJE","£"]
[null,"8.1","Realizar operaciones básicas de soldadura tanto en proceso TIG, MAG, SMAW, que garanticen una correcta fijación de la unión para que el soldador pueda realizar a unión posteriormente: esta unión deberá cumplir con las especificaciones de los WPS y que garantice la correcta separación y alineamiento de la unión.","MONTAJE - SOLDADURA","R"]
[null,"8.2","Realizar operaciones con proceso SAW, teniendo en cuanta las variables del proceso","SAP","R"]

{"sheet":"Check List -ROMERO PUERTO","index":2,"n_rows":79,"n_cols":7,"rows_kept":79,"cut":false,"hidden":false,"merged":[[5,6,5,7]]}
[null,"FP-DUAL CICLO FORMATIVO DE GRADO MEDIO DE SOLDADURA Y CALDERERÍA"]
[null,"Check List",null,"Porcentaje completado",{"$f":"porcentaje(CheckList)","v":0}]
[]
[null,"#","Elemento a comprobar\n(doble clic para expandir/colapsar)","Descripciones","Estado\n(doble clic para activar)"]
[]
[null,1,"A-1 En la oficina técnica y departamento de producción"," ","£",null,"ACTIVIDADES EMPRESA "]
[null,"1.2","Realizar tareas con los cajetines de materiales de planos constructivos de la empresa: - identificar las piezas normalizadas en los planos: tornillería, accesorios de tubería, perfiles laminados, materiales – Manejar los catálogos de materiales y accesorios. Definiciones de dimensiones, características del material, aceros inoxidable, al carbono, aluminio, etc.","MEC - TCC","£",null,"A:1 Completa: En la oficina técnica"]
[null,"1.4","Realizar croquizado de piezas de productos de calderería y tubería","TCC","£",null,"A:2 Completa: Acopio materiales"]
[null,null,null,null,null,null,"A:3 Completa: TCC"]
[null,2,"A-2 Acopio de materiales y preparación de materiales"," ","£",null,"A:4 Completa: Opera corte térmico"]
[null,"2.1","Identificar el material según sus características y formas comerciales","MEC","£",null,"A:5 Completa: Mecanizado y conformado"]
[null,"2.2","Recepción y acopio de materiales atendiendo a las características propias","TCC - MEC","£",null,"A:6 Completa: Montaje y soldeo"]
[null,"2.3","Acondicionamiento del área de trabajo atendiendo a las propiedades de los materiales: aislamientos de apoyo, utillaje y herramientas.","MEC-TCC-SAN","£",null,"Ir a Principal"]
[null,"2.4","Preparación de las piezas teniendo en cuenta los volúmenes y medios de transporte","MEC","£"]
[]
[null,3,"A-3 Trazado y corte"," ","£"]
[null,"3.1"," Identificar el material según sus características y formas comerciales","TCC","£"]
[null,"3.2"," Realizar los trazados necesarios para obtener los productos deseados","TCC","£"]
[null,"3.3","A partir de una chapa plana ser capaz de obtener el producto necesario corriendo las desviaciones de escuadrado o defectos producidos: este trazado se obtiene en un plano bidemensional","TCC","£"]
[null,"3.4"," A partir de tanto de perfiles comerciales como de tuberías realizar trazados en tres dimensiones: teniendo en cuenta el proceso de corte a utilizar deberá tener en cuenta la sangría o grueso derivado del proceso de corte","TCC","£"]
[]
[null,"4","A-4 Operar con equipos de corte térmico tanto manuales, como automáticos"," ","£"]
[null,"4.1","Preparar el equipo de oxicorte manual teniendo en cuenta: la naturaleza del material, el espesor de la pieza.","OXICORTE - SOPLETE","£"]
[null,"4.2","Preparara un equipo de plasma teniendo en cuenta las variables derivadas de: tipo de material, presiones,","EQUIPO DE PLASMA","£"]
[null,"4.3","Preparar un equipo de oxicorte semiautomático regulando: velocidades de avance, presiones","OXICORTE - TANAKA","£"]
[null,"4.4","Preparar todas las medidas de protección tanto colectiva como individual","TCC-MEC","£"]
[null,"4.5","Preparar equipo de corte por control numérico, introduciendo los parámetros determinados para obtener las piezas necesarias optimizando el material.","CORTE POR CNC","£"]
[null,"4.61","    Preparar equipos de corte mecánico o corte frío: CIZALLA","MEC","£"]
[null,"4.62","    Preparar equipos de corte mecánico o corte frío: SIERRA DE CINTA","TCC","£"]
[null,"4.63","    Preparar equipos de corte mecánico o corte frío: TRONZONADORA","TCC","£"]
[null,"4.64","    Preparar equipos de corte mecánico o corte frío:  PUNZONADORA","TCC","£"]
[null,"4.65","    Preparar equipos de corte mecánico o corte frío: AMOLADORA O RADIAL - ANGULAR","MEC","£"]
[null,"4.11","Marcado de los productos obtenidos en base a las especificaciones de los planos y en caso de requisitos de calidad la colada para la trazabilidad.","TCC","£"]
[null,"4.12","Realizar las operaciones de corte térmico a partir de los trazados obtenidos: teniendo en cuenta las deformaciones y defectos, derivados del proceso.","TCC","£"]
[null,"4.13","Realizar operaciones de corte térmico con plasma a partir de los trazados obtenidos: teniendo en cuenta las deformaciones y defectos, derivados del proceso.","TCC","£"]
[null,"4.14","Realizar operaciones de corte por control numérico introduciendo el lenguaje de programación y aplicando los parámetros necesarios para obtener el producto deseado.","TCC","£"]
[null,"4.15","Realizar operaciones de corte mecánico tanto en: sierra de cinta, cizalla, tronzadora, amoladora. Teniendo en cuenta los defectos y calidad de acabado requeridos.","MEC","£"]
[null,"4.16","Marcado de los productos obtenidos en base a las especificaciones de los planos y en caso de requisitos de calidad la colada para la trazabilidad.","TCC","£"]
[]
[null,"5","A-5 Mecanizado y conformado de chapas, perfiles y tubería"," ","£"]
[null,"5.1","A partir de los productos obtenidos de corte, el alumnado debe verificar los productos obtenidos y en caso de haber desviaciones producidas por el corte térmico así como deformaciones plásticas del suministro. Deberá realizar las correcciones necesarias bien por: Enderezado por calor, enderezado en prensa.","MEC-TCC","£"]
[null,"5.2","Preparación de bordes por procesos térmicos: espesor a soldar, geometría de la unión","TCC","£"]
[null,"5.3","    Realizar biselados por medios mecánicos: amolado, biseladora.","TCC","£"]
[null,"5.4","    Realizar operaciones de mecanizado: TALADRADO  ","MEC ","£"]
[null,"5.5","    Realizar operaciones de mecanizado: ROSCADO","MEC","£"]
[null,"5.6","    Realizar operaciones de mecanizado: ESCARIADO","MEC","£"]
[null,"5.7","    Realizar operaciones de mecanizado: AVELLANADO","TCC","£"]
[null,"5.8","Realizar operaciones de desbaste","MEC","£"]
[null,"5.9","Realizar CILINDRADO de chapas de virolas","MEC","£"]
[null,"5.2","Realizar CURVADO de troncos","TCC","£"]
[null,"5.3","Realizar PLEGADO de chapa en prensa plegadora","TCC","£"]
[null,"5.4","Fabricación de utillaje y plantillas necesarias para el proceso de conformado","TCC","£"]
[null,6,"A-6 Montaje de elementos de calderería, tubería y carpintería metálica"," ","£"]
[null,"6.1","Realizar operaciones básicas de soldadura tanto en proceso TIG, MAG, SMAW, que garanticen una correcta fijación de la unión para que el soldador pueda realizar a unión posteriormente: esta unión deberá cumplir con las especificaciones de los WPS y que garantice la correcta separación y alineamiento de la unión.","SAN-SAP","£"]
[null,"6.2","Realizar operaciones básicas de soldadura  proceso SMAW - TRANSFORMADOR O RECTIFICADOR","SAN-SAP","£"]
[null,"6.3","Realizar operaciones básicas de soldadura  proceso SEMIAUTOMÁTICO - GMAW- FCAW","SAN-SAP","£"]
[null,"6.5","Realizar operaciones básicas de soldadura  proceso GTAW","SAN-SAP","£"]
[null,"6.6","Realizar operaciones básicas de soldadura tanto en proceso TIG, MAG, SMAW, que garanticen una correcta fijación de la unión para que el soldador pueda realizar a unión posteriormente: esta unión deberá cumplir con las especificaciones de los WPS y que garantice la correcta separación y alineamiento de la unión.","SAN-SAP","£"]
[null,7,"A-1 En la oficina técnica y departamento de producción"," ","£"]
[null,"7.1","Mediante planos de fabricación el alumno debe relacionar: Sistemas de representaciones - Secciones roturas- Acotaciones","MONTAJE ","£"]
[null,"7.2","Realizar tareas con los cajetines de materiales de planos constructivos de la empresa: - identificar las piezas normalizadas en los planos: tornillería, accesorios de tubería, perfiles laminados, materiales – Manejar los catálogos de materiales y accesorios. Definiciones de dimensiones, características del material, aceros inoxidable, al carbono, aluminio, etc.","MONTAJE","£"]
[null,"7.3","Diferenciar los diferentes tipos de planos: planos de implantación, de conjunto, ortogonales, despiece, isométricos, P&D, As Built.","MONTAJE","£"]
[null,"7.4","Realizar croquizado de piezas de productos de calderería y tubería","MONTAJE","£"]
[null,8,"A-2 Acopio de materiales y preparación de materiales"," ","£"]
[null,"8.1","Recepción y acopio de materiales atendiendo a las características propias","TCC-MEC","£"]
[null,"8.2","Acondicionamiento del área de trabajo atendiendo a las propiedades de los materiales: aislamientos de apoyo, utillaje y herramientas.","TCC-MEC","£"]
[null,8,"A-6 Montaje de elementos de calderería, tubería y carpintería metálica"," ","£"]
[null,"8.1","Identificar los materiales prefabricados y acopiados atendiendo a las marcas de los planos y especificaciones de fabricación","MONTAJE ","£"]
[null,"8.2","Preparación de bancadas, plantillas, utillaje, esperas o derivados que sirvan para montaje","MONTAJE","£"]
[null,"8.1","Movimiento de cargas conociendo las características como pesos y geometrías de las cargas a mover, para su correcto eslingados e izado","MONTAJE","£"]
[null,"8.2","Manejo de puentes grúa o enganchador de cargas para su montaje. Atendiendo a la seguridad colectiva y personal","MONTAJE","£"]
[null,"8.1","Realizar el replanteos atendiendo a puntos de referencia, coordenadas, elevaciones, etc","MONTAJE","£"]
[null,"8.2","Realizar aplomes, nivelaciones, y las operaciones necesarias, que garanticen el correcto montaje de los elementos atendiendo a la normativa de calidad que recoja las tolerancias. Deberá incluir soportación auxiliar si fuera necesario, además de aplicar un correcto manejo de los elementos de elevación u posicionamiento, tales como grúas, polipastos, tensores, gatos, etc..","MONTAJE","£"]
[null,"8.1","Realizar operaciones de uniones soldadas y si es necesario utilizar utillaje como tensores, polipastos, gatos, etc.","MONTAJE","£"]
[null,"8.2","Conocimiento de los tipos de elementos de elevación auxiliar tales como andamios y carretillas elevadoras","MONTAJE","£"]
[null,"8.1","Realizar pruebas de estanquidad que garanticen los marcados CE o los estándares de calidad requeridos","MONTAJE","£"]
[null,"8.2","Conocimiento de los tratamientos superficiales que garantice el servicios y eviten la oxidación tales como: acabados de pintura, galvanizados, etc.","MONTAJE","£"]
[null,"8.1","Realizar operaciones básicas de soldadura tanto en proceso TIG, MAG, SMAW, que garanticen una correcta fijación de la unión para que el soldador pueda realizar a unión posteriormente: esta unión deberá cumplir con las especificaciones de los WPS y que garantice la correcta separación y alineamiento de la unión.","MONTAJE - SOLDADURA","£"]
[null,"8.2","Realizar operaciones con proceso SAW, teniendo en cuanta las variables del proceso","SAP","£"]

{"sheet":"Check List-TURNAVAL","index":3,"n_rows":81,"n_cols":7,"rows_kept":81,"cut":false,"hidden":false,"merged":[[5,6,5,7]]}
[null,"FP-DUAL CICLO FORMATIVO DE GRADO MEDIO DE SOLDADURA Y CALDERERÍA"]
[null,"Check List",null,"Porcentaje completado",{"$f":"porcentaje(CheckList)","v":0}]
[]
[null,"#","Elemento a comprobar\n(doble clic para expandir/colapsar)","Descripciones","Estado\n(doble clic para activar)"]
[]
[null,1,"A-1 En la oficina técnica y departamento de producción"," ","£",null,"ACTIVIDADES EMPRESA "]
[null,"1.1","Realizar tareas con los cajetines de materiales de planos constructivos de la empresa: - identificar las piezas normalizadas en los planos: tornillería, accesorios de tubería, perfiles laminados, materiales – Manejar los catálogos de materiales y accesorios. Definiciones de dimensiones, características del material, aceros inoxidable, al carbono, aluminio, etc.","MEC - TCC","£",null,"A:1 Completa: En la oficina técnica"]
[null,"1.2","Realizar croquizado de piezas de productos de calderería y tubería","TCC","£",null,"A:2 Completa: Acopio materiales"]
[null,null,null,null,null,null,"A:3 Completa: TCC"]
[null,2,"A-2 Acopio de materiales y preparación de materiales"," ","£",null,"A:4 Completa: Opera corte térmico"]
[null,"2.1","Identificar el material según sus características y formas comerciales","MEC","£",null,"A:5 Completa: Mecanizado y conformado"]
[null,"2.2","Recepción y acopio de materiales atendiendo a las características propias","TCC - MEC","£",null,"A:6 Completa: Montaje y soldeo"]
[null,"2.3","Acondicionamiento del área de trabajo atendiendo a las propiedades de los materiales: aislamientos de apoyo, utillaje y herramientas.","MEC-TCC-SAN","£",null,"Ir a Principal"]
[null,"2.4","Preparación de las piezas teniendo en cuenta los volúmenes y medios de transporte","MEC","£"]
[]
[null,3,"A-3 Trazado y corte"," ","£"]
[null,"3.1"," Identificar el material según sus características y formas comerciales","TCC","£"]
[null,"3.2"," Realizar los trazados necesarios para obtener los productos deseados","TCC","£"]
[null,"3.3","A partir de una chapa plana ser capaz de obtener el producto necesario corriendo las desviaciones de escuadrado o defectos producidos: este trazado se obtiene en un plano bidemensional","TCC","£"]
[null,"3.4"," A partir de tanto de perfiles comerciales como de tuberías realizar trazados en tres dimensiones: teniendo en cuenta el proceso de corte a utilizar deberá tener en cuenta la sangría o grueso derivado del proceso de corte","TCC","£"]
[]
[null,"4","A-4 Operar con equipos de corte térmico tanto manuales, como automáticos"," ","£"]
[null,"4.1","Preparar el equipo de oxicorte manual teniendo en cuenta: la naturaleza del material, el espesor de la pieza.","OXICORTE - SOPLETE","£"]
[null,"4.2","Preparara un equipo de plasma teniendo en cuenta las variables derivadas de: tipo de material, presiones,","EQUIPO DE PLASMA","£"]
[null,"4.3","Preparar un equipo de oxicorte semiautomático regulando: velocidades de avance, presiones","OXICORTE - TANAKA","£"]
[null,"4.4","Preparar todas las medidas de protección tanto colectiva como individual","TCC-MEC","£"]
[null,"4.5","Preparar equipo de corte por control numérico, introduciendo los parámetros determinados para obtener las piezas necesarias optimizando el material.","CORTE POR CNC","£"]
[null,"4.6","    Preparar equipos de corte mecánico o corte frío: CIZALLA","MEC","£"]
[null,"4.7","    Preparar equipos de corte mecánico o corte frío: SIERRA DE CINTA","TCC","£"]
[null,"4.8","    Preparar equipos de corte mecánico o corte frío: TRONZONADORA","TCC","£"]
[null,"4.9","    Preparar equipos de corte mecánico o corte frío:  PUNZONADORA","TCC","£"]
[null,"4.10","    Preparar equipos de corte mecánico o corte frío: AMOLADORA O RADIAL - ANGULAR","MEC","£"]
[null,"4.11","Marcado de los productos obtenidos en base a las especificaciones de los planos y en caso de requisitos de calidad la colada para la trazabilidad.","TCC","£"]
[null,"4.12","Realizar las operaciones de corte térmico a partir de los trazados obtenidos: teniendo en cuenta las deformaciones y defectos, derivados del proceso.","TCC","£"]
[null,"4.13","Realizar operaciones de corte térmico con plasma a partir de los trazados obtenidos: teniendo en cuenta las deformaciones y defectos, derivados del proceso.","TCC","£"]
[null,"4.14","Realizar operaciones de corte por control numérico introduciendo el lenguaje de programación y aplicando los parámetros necesarios para obtener el producto deseado.","TCC","£"]
[null,"4.15","Realizar operaciones de corte mecánico tanto en: sierra de cinta, cizalla, tronzadora, amoladora. Teniendo en cuenta los defectos y calidad de acabado requeridos.","MEC","£"]
[null,"4.16","Marcado de los productos obtenidos en base a las especificaciones de los planos y en caso de requisitos de calidad la colada para la trazabilidad.","TCC","£"]
[]
[null,"5","A-5 Mecanizado y conformado de chapas, perfiles y tubería"," ","£"]
[null,"5.1","A partir de los productos obtenidos de corte, el alumnado debe verificar los productos obtenidos y en caso de haber desviaciones producidas por el corte térmico así como deformaciones plásticas del suministro. Deberá realizar las correcciones necesarias bien por: Enderezado por calor, enderezado en prensa.","MEC-TCC","£"]
[null,"5.2","Preparación de bordes por procesos térmicos: espesor a soldar, geometría de la unión","TCC","£"]
[null,"5.3","    Realizar biselados por medios mecánicos: amolado, biseladora.","TCC","£"]
[null,"5.4","    Realizar operaciones de mecanizado: TALADRADO  ","MEC ","£"]
[null,"5.5","    Realizar operaciones de mecanizado: ROSCADO","MEC","£"]
[null,"5.6","    Realizar operaciones de mecanizado: ESCARIADO","MEC","£"]
[null,"5.7","    Realizar operaciones de mecanizado: AVELLANADO","TCC","£"]
[null,"5.8","Realizar operaciones de desbaste","MEC","£"]
[null,"5.9","Realizar CILINDRADO de chapas de virolas","MEC","£"]
[null,"5.2","Realizar CURVADO de troncos","TCC","£"]
[null,"5.3","Realizar PLEGADO de chapa en prensa plegadora","TCC","£"]
[null,"5.4","Fabricación de utillaje y plantillas necesarias para el proceso de conformado","TCC","£"]
[null,6,"A-6 Montaje de elementos de calderería, tubería y carpintería metálica"," ","£"]
[null,"6.1","Realizar operaciones básicas de soldadura tanto en proceso TIG, MAG, SMAW, que garanticen una correcta fijación de la unión para que el soldador pueda realizar a unión posteriormente: esta unión deberá cumplir con las especificaciones de los WPS y que garantice la correcta separación y alineamiento de la unión.","SAN-SAP","£"]
[null,"6.2","Realizar operaciones básicas de soldadura  proceso SMAW - TRANSFORMADOR O RECTIFICADOR","SAN-SAP","£"]
[null,"6.3","Realizar operaciones básicas de soldadura  proceso SEMIAUTOMÁTICO - GMAW- FCAW","SAN-SAP","£"]
[null,"6.5","Realizar operaciones básicas de soldadura  proceso GTAW","SAN-SAP","£"]
[null,"6.6","Realizar operaciones básicas de soldadura tanto en proceso TIG, MAG, SMAW, que garanticen una correcta fijación de la unión para que el soldador pueda realizar a unión posteriormente: esta unión deberá cumplir con las especificaciones de los WPS y que garantice la correcta separación y alineamiento de la unión.","SAN-SAP","£"]
[null,7,"A-1 En la oficina técnica y departamento de producción"," ","£"]
[null,"7.1","Mediante planos de fabricación el alumno debe relacionar: Sistemas de representaciones - Secciones roturas- Acotaciones","MONTAJE ","£"]
[null,"7.2","Realizar tareas con los cajetines de materiales de planos constructivos de la empresa: - identificar las piezas normalizadas en los planos: tornillería, accesorios de tubería, perfiles laminados, materiales – Manejar los catálogos de materiales y accesorios. Definiciones de dimensiones, características del material, aceros inoxidable, al carbono, aluminio, etc.","MONTAJE","£"]
[null,"7.3","Diferenciar los diferentes tipos de planos: planos de implantación, de conjunto, ortogonales, despiece, isométricos, P&D, As Built.","MONTAJE","£"]
[null,"7.4","Realizar croquizado de piezas de productos de calderería y tubería","MONTAJE","£"]
[null,8,"A-2 Acopio de materiales y preparación de materiales"," ","£"]
[null,"8.1","Recepción y acopio de materiales atendiendo a las características propias","TCC-MEC","£"]
[null,"8.2","Acondicionamiento del área de trabajo atendiendo a las propiedades de los materiales: aislamientos de apoyo, utillaje y herramientas.","TCC-MEC","£"]
[null,8,"A-6 Montaje de elementos de calderería, tubería y carpintería metálica"," ","£"]
[null,"8.1","Identificar los materiales prefabricados y acopiados atendiendo a las marcas de los planos y especificaciones de fabricación","MONTAJE ","£"]
[null,"8.2","Preparación de bancadas, plantillas, utillaje, esperas o derivados que sirvan para montaje","MONTAJE","£"]
[null,"8.1","Movimiento de cargas conociendo las características como pesos y geometrías de las cargas a mover, para su correcto eslingados e izado","MONTAJE","£"]
[null,"8.2","Manejo de puentes grúa o enganchador de cargas para su montaje. Atendiendo a la seguridad colectiva y personal","MONTAJE","£"]
[null,"8.1","Realizar el replanteos atendiendo a puntos de referencia, coordenadas, elevaciones, etc","MONTAJE","£"]
[null,"8.2","Realizar aplomes, nivelaciones, y las operaciones necesarias, que garanticen el correcto montaje de los elementos atendiendo a la normativa de calidad que recoja las tolerancias. Deberá incluir soportación auxiliar si fuera necesario, además de aplicar un correcto manejo de los elementos de elevación u posicionamiento, tales como grúas, polipastos, tensores, gatos, etc..","MONTAJE","£"]
[null,"8.1","Realizar operaciones de uniones soldadas y si es necesario utilizar utillaje como tensores, polipastos, gatos, etc.","MONTAJE","£"]
[null,"8.2","Conocimiento de los tipos de elementos de elevación auxiliar tales como andamios y carretillas elevadoras","MONTAJE","£"]
[null,"8.1","Realizar pruebas de estanquidad que garanticen los marcados CE o los estándares de calidad requeridos","MONTAJE","£"]
[null,"8.2","Conocimiento de los tratamientos superficiales que garantice el servicios y eviten la oxidación tales como: acabados de pintura, galvanizados, etc.","MONTAJE","£"]
[null,"8.1","Realizar operaciones básicas de soldadura tanto en proceso TIG, MAG, SMAW, que garanticen una correcta fijación de la unión para que el soldador pueda realizar a unión posteriormente: esta unión deberá cumplir con las especificaciones de los WPS y que garantice la correcta separación y alineamiento de la unión.","MONTAJE - SOLDADURA","£"]
[null,"8.2","Realizar operaciones con proceso SAW, teniendo en cuanta las variables del proceso","SAP","£"]
[null,"8.1","Realizar operaciones básicas de soldadura tanto en proceso TIG, MAG, SMAW, que garanticen una correcta fijación de la unión para que el soldador pueda realizar a unión posteriormente: esta unión deberá cumplir con las especificaciones de los WPS y que garantice la correcta separación y alineamiento de la unión.","MONTAJE - SOLDADURA","£"]
[null,"8.2","Realizar operaciones con proceso SAW, teniendo en cuanta las variables del proceso","SAP","£"]

{"sheet":"Check List-CAMBEL","index":4,"n_rows":81,"n_cols":7,"rows_kept":81,"cut":false,"hidden":false,"merged":[[5,6,5,7]]}
[null,"FP-DUAL CICLO FORMATIVO DE GRADO MEDIO DE SOLDADURA Y CALDERERÍA"]
[null,"Check List",null,"Porcentaje completado",{"$f":"porcentaje(CheckList)","v":0.34920634920634919}]
[]
[null,"#","Elemento a comprobar\n(doble clic para expandir/colapsar)","Descripciones","Estado\n(doble clic para activar)"]
[]
[null,1,"A-1 En la oficina técnica y departamento de producción"," ","R",null,"ACTIVIDADES EMPRESA "]
[null,"1.1","Realizar tareas con los cajetines de materiales de planos constructivos de la empresa: - identificar las piezas normalizadas en los planos: tornillería, accesorios de tubería, perfiles laminados, materiales – Manejar los catálogos de materiales y accesorios. Definiciones de dimensiones, características del material, aceros inoxidable, al carbono, aluminio, etc.","MEC - TCC","R",null,"A:1 Completa: En la oficina técnica"]
[null,"1.2","Realizar croquizado de piezas de productos de calderería y tubería","TCC","R",null,"A:2 Completa: Acopio materiales"]
[null,null,null,null,null,null,"A:3 Completa: TCC"]
[null,2,"A-2 Acopio de materiales y preparación de materiales"," ","R",null,"A:4 Completa: Opera corte térmico"]
[null,"2.1","Identificar el material según sus características y formas comerciales","MEC","R",null,"A:5 Completa: Mecanizado y conformado"]
[null,"2.2","Recepción y acopio de materiales atendiendo a las características propias","TCC - MEC","R",null,"A:6 Completa: Montaje y soldeo"]
[null,"2.3","Acondicionamiento del área de trabajo atendiendo a las propiedades de los materiales: aislamientos de apoyo, utillaje y herramientas.","MEC-TCC-SAN","R",null,"Ir a Principal"]
[null,"2.4","Preparación de las piezas teniendo en cuenta los volúmenes y medios de transporte","MEC","R"]
[]
[null,3,"A-3 Trazado y corte"," ","£"]
[null,"3.1"," Identificar el material según sus características y formas comerciales","TCC","£"]
[null,"3.2"," Realizar los trazados necesarios para obtener los productos deseados","TCC","£"]
[null,"3.3","A partir de una chapa plana ser capaz de obtener el producto necesario corriendo las desviaciones de escuadrado o defectos producidos: este trazado se obtiene en un plano bidemensional","TCC","£"]
[null,"3.4"," A partir de tanto de perfiles comerciales como de tuberías realizar trazados en tres dimensiones: teniendo en cuenta el proceso de corte a utilizar deberá tener en cuenta la sangría o grueso derivado del proceso de corte","TCC","£"]
[]
[null,"4","A-4 Operar con equipos de corte térmico tanto manuales, como automáticos"," ","©"]
[null,"4.1","Preparar el equipo de oxicorte manual teniendo en cuenta: la naturaleza del material, el espesor de la pieza.","OXICORTE - SOPLETE","R"]
[null,"4.2","Preparara un equipo de plasma teniendo en cuenta las variables derivadas de: tipo de material, presiones,","EQUIPO DE PLASMA","R"]
[null,"4.3","Preparar un equipo de oxicorte semiautomático regulando: velocidades de avance, presiones","OXICORTE - TANAKA","R"]
[null,"4.4","Preparar todas las medidas de protección tanto colectiva como individual","TCC-MEC","£"]
[null,"4.5","Preparar equipo de corte por control numérico, introduciendo los parámetros determinados para obtener las piezas necesarias optimizando el material.","CORTE POR CNC","R"]
[null,"4.6","    Preparar equipos de corte mecánico o corte frío: CIZALLA","MEC","£"]
[null,"4.7","    Preparar equipos de corte mecánico o corte frío: SIERRA DE CINTA","TCC","£"]
[null,"4.8","    Preparar equipos de corte mecánico o corte frío: TRONZONADORA","TCC","£"]
[null,"4.9","    Preparar equipos de corte mecánico o corte frío:  PUNZONADORA","TCC","R"]
[null,"4.10","    Preparar equipos de corte mecánico o corte frío: AMOLADORA O RADIAL - ANGULAR","MEC","£"]
[null,"4.11","Marcado de los productos obtenidos en base a las especificaciones de los planos y en caso de requisitos de calidad la colada para la trazabilidad.","TCC","£"]
[null,"4.12","Realizar las operaciones de corte térmico a partir de los trazados obtenidos: teniendo en cuenta las deformaciones y defectos, derivados del proceso.","TCC","R"]
[null,"4.13","Realizar operaciones de corte térmico con plasma a partir de los trazados obtenidos: teniendo en cuenta las deformaciones y defectos, derivados del proceso.","TCC","R"]
[null,"4.14","Realizar operaciones de corte por control numérico introduciendo el lenguaje de programación y aplicando los parámetros necesarios para obtener el producto deseado.","TCC","R"]
[null,"4.15","Realizar operaciones de corte mecánico tanto en: sierra de cinta, cizalla, tronzadora, amoladora. Teniendo en cuenta los defectos y calidad de acabado requeridos.","MEC","£"]
[null,"4.16","Marcado de los productos obtenidos en base a las especificaciones de los planos y en caso de requisitos de calidad la colada para la trazabilidad.","TCC","R"]
[]
[null,"5","A-5 Mecanizado y conformado de chapas, perfiles y tubería"," ","£"]
[null,"5.1","A partir de los productos obtenidos de corte, el alumnado debe verificar los productos obtenidos y en caso de haber desviaciones producidas por el corte térmico así como deformaciones plásticas del suministro. Deberá realizar las correcciones necesarias bien por: Enderezado por calor, enderezado en prensa.","MEC-TCC","£"]
[null,"5.2","Preparación de bordes por procesos térmicos: espesor a soldar, geometría de la unión","TCC","£"]
[null,"5.3","    Realizar biselados por medios mecánicos: amolado, biseladora.","TCC","£"]
[null,"5.4","    Realizar operaciones de mecanizado: TALADRADO  ","MEC ","£"]
[null,"5.5","    Realizar operaciones de mecanizado: ROSCADO","MEC","£"]
[null,"5.6","    Realizar operaciones de mecanizado: ESCARIADO","MEC","£"]
[null,"5.7","    Realizar operaciones de mecanizado: AVELLANADO","TCC","£"]
[null,"5.8","Realizar operaciones de desbaste","MEC","£"]
[null,"5.9","Realizar CILINDRADO de chapas de virolas","MEC","£"]
[null,"5.2","Realizar CURVADO de troncos","TCC","£"]
[null,"5.3","Realizar PLEGADO de chapa en prensa plegadora","TCC","£"]
[null,"5.4","Fabricación de utillaje y plantillas necesarias para el proceso de conformado","TCC","£"]
[null,6,"A-6 Montaje de elementos de calderería, tubería y carpintería metálica"," ","R"]
[null,"6.1","Realizar operaciones básicas de soldadura tanto en proceso TIG, MAG, SMAW, que garanticen una correcta fijación de la unión para que el soldador pueda realizar a unión posteriormente: esta unión deberá cumplir con las especificaciones de los WPS y que garantice la correcta separación y alineamiento de la unión.","SAN-SAP","R"]
[null,"6.2","Realizar operaciones básicas de soldadura  proceso SMAW - TRANSFORMADOR O RECTIFICADOR","SAN-SAP","R"]
[null,"6.3","Realizar operaciones básicas de soldadura  proceso SEMIAUTOMÁTICO - GMAW- FCAW","SAN-SAP","R"]
[null,"6.5","Realizar operaciones básicas de soldadura  proceso GTAW","SAN-SAP","R"]
[null,"6.6","Realizar operaciones básicas de soldadura tanto en proceso TIG, MAG, SMAW, que garanticen una correcta fijación de la unión para que el soldador pueda realizar a unión posteriormente: esta unión deberá cumplir con las especificaciones de los WPS y que garantice la correcta separación y alineamiento de la unión.","SAN-SAP","R"]
[null,7,"A-1 En la oficina técnica y departamento de producción"," ","£"]
[null,"7.1","Mediante planos de fabricación el alumno debe relacionar: Sistemas de representaciones - Secciones roturas- Acotaciones","MONTAJE ","£"]
[null,"7.2","Realizar tareas con los cajetines de materiales de planos constructivos de la empresa: - identificar las piezas normalizadas en los planos: tornillería, accesorios de tubería, perfiles laminados, materiales – Manejar los catálogos de materiales y accesorios. Definiciones de dimensiones, características del material, aceros inoxidable, al carbono, aluminio, etc.","MONTAJE","£"]
[null,"7.3","Diferenciar los diferentes tipos de planos: planos de implantación, de conjunto, ortogonales, despiece, isométricos, P&D, As Built.","MONTAJE","£"]
[null,"7.4","Realizar croquizado de piezas de productos de calderería y tubería","MONTAJE","£"]
[null,8,"A-2 Acopio de materiales y preparación de materiales"," ","£"]
[null,"8.1","Recepción y acopio de materiales atendiendo a las características propias","TCC-MEC","£"]
[null,"8.2","Acondicionamiento del área de trabajo atendiendo a las propiedades de los materiales: aislamientos de apoyo, utillaje y herramientas.","TCC-MEC","£"]
[null,8,"A-6 Montaje de elementos de calderería, tubería y carpintería metálica"," ","©"]
[null,"8.1","Identificar los materiales prefabricados y acopiados atendiendo a las marcas de los planos y especificaciones de fabricación","MONTAJE ","£"]
[null,"8.2","Preparación de bancadas, plantillas, utillaje, esperas o derivados que sirvan para montaje","MONTAJE","£"]
[null,"8.1","Movimiento de cargas conociendo las características como pesos y geometrías de las cargas a mover, para su correcto eslingados e izado","MONTAJE","£"]
[null,"8.2","Manejo de puentes grúa o enganchador de cargas para su montaje. Atendiendo a la seguridad colectiva y personal","MONTAJE","£"]
[null,"8.1","Realizar el replanteos atendiendo a puntos de referencia, coordenadas, elevaciones, etc","MONTAJE","£"]
[null,"8.2","Realizar aplomes, nivelaciones, y las operaciones necesarias, que garanticen el correcto montaje de los elementos atendiendo a la normativa de calidad que recoja las tolerancias. Deberá incluir soportación auxiliar si fuera necesario, además de aplicar un correcto manejo de los elementos de elevación u posicionamiento, tales como grúas, polipastos, tensores, gatos, etc..","MONTAJE","£"]
[null,"8.1","Realizar operaciones de uniones soldadas y si es necesario utilizar utillaje como tensores, polipastos, gatos, etc.","MONTAJE","£"]
[null,"8.2","Conocimiento de los tipos de elementos de elevación auxiliar tales como andamios y carretillas elevadoras","MONTAJE","£"]
[null,"8.1","Realizar pruebas de estanquidad que garanticen los marcados CE o los estándares de calidad requeridos","MONTAJE","£"]
[null,"8.2","Conocimiento de los tratamientos superficiales que garantice el servicios y eviten la oxidación tales como: acabados de pintura, galvanizados, etc.","MONTAJE","£"]
[null,"8.1","Realizar operaciones básicas de soldadura tanto en proceso TIG, MAG, SMAW, que garanticen una correcta fijación de la unión para que el soldador pueda realizar a unión posteriormente: esta unión deberá cumplir con las especificaciones de los WPS y que garantice la correcta separación y alineamiento de la unión.","MONTAJE - SOLDADURA","R"]
[null,"8.2","Realizar operaciones con proceso SAW, teniendo en cuanta las variables del proceso","SAP","R"]
[null,"8.1","Realizar operaciones básicas de soldadura tanto en proceso TIG, MAG, SMAW, que garanticen una correcta fijación de la unión para que el soldador pueda realizar a unión posteriormente: esta unión deberá cumplir con las especificaciones de los WPS y que garantice la correcta separación y alineamiento de la unión.","MONTAJE - SOLDADURA","£"]
[null,"8.2","Realizar operaciones con proceso SAW, teniendo en cuanta las variables del proceso","SAP","£"]

{"sheet":"Check List-NAVANTIA","index":5,"n_rows":81,"n_cols":7,"rows_kept":81,"cut":false,"hidden":false,"merged":[[5,6,5,7]]}
[null,"FP-DUAL CICLO FORMATIVO DE GRADO MEDIO DE SOLDADURA Y CALDERERÍA"]
[null,"Check List",null,"Porcentaje completado",{"$f":"porcentaje(CheckList)","v":0},null,{"$f":"PRINCIPAL!I11","v":0}]
[]
[null,"#","Elemento a comprobar\n(doble clic para expandir/colapsar)","Descripciones","Estado\n(doble clic para activar)"]
[]
[null,1,"A-1 En la oficina técnica y departamento de producción"," ","£",null,"ACTIVIDADES EMPRESA "]
[null,"1.1","Realizar tareas con los cajetines de materiales de planos constructivos de la empresa: - identificar las piezas normalizadas en los planos: tornillería, accesorios de tubería, perfiles laminados, materiales – Manejar los catálogos de materiales y accesorios. Definiciones de dimensiones, características del material, aceros inoxidable, al carbono, aluminio, etc.","MEC - TCC","£",null,"A:1 Completa: En la oficina técnica"]
[null,"1.2","Realizar croquizado de piezas de productos de calderería y tubería","TCC","£",null,"A:2 Completa: Acopio materiales"]
[null,null,null,null,null,null,"A:3 Completa: TCC"]
[null,2,"A-2 Acopio de materiales y preparación de materiales"," ","£",null,"A:4 Completa: Opera corte térmico"]
[null,"2.1","Identificar el material según sus características y formas comerciales","MEC","£",null,"A:5 Completa: Mecanizado y conformado"]
[null,"2.2","Recepción y acopio de materiales atendiendo a las características propias","TCC - MEC","£",null,"A:6 Completa: Montaje y soldeo"]
[null,"2.3","Acondicionamiento del área de trabajo atendiendo a las propiedades de los materiales: aislamientos de apoyo, utillaje y herramientas.","MEC-TCC-SAN","£",null,"Ir a Principal"]
[null,"2.4","Preparación de las piezas teniendo en cuenta los volúmenes y medios de transporte","MEC","£"]
[]
[null,3,"A-3 Trazado y corte"," ","£"]
[null,"3.1"," Identificar el material según sus características y formas comerciales","TCC","£"]
[null,"3.2"," Realizar los trazados necesarios para obtener los productos deseados","TCC","£"]
[null,"3.3","A partir de una chapa plana ser capaz de obtener el producto necesario corriendo las desviaciones de escuadrado o defectos producidos: este trazado se obtiene en un plano bidemensional","TCC","£"]
[null,"3.4"," A partir de tanto de perfiles comerciales como de tuberías realizar trazados en tres dimensiones: teniendo en cuenta el proceso de corte a utilizar deberá tener en cuenta la sangría o grueso derivado del proceso de corte","TCC","£"]
[]
[null,"4","A-4 Operar con equipos de corte térmico tanto manuales, como automáticos"," ","£"]
[null,"4.1","Preparar el equipo de oxicorte manual teniendo en cuenta: la naturaleza del material, el espesor de la pieza.","OXICORTE - SOPLETE","£"]
[null,"4.2","Preparara un equipo de plasma teniendo en cuenta las variables derivadas de: tipo de material, presiones,","EQUIPO DE PLASMA","£"]
[null,"4.3","Preparar un equipo de oxicorte semiautomático regulando: velocidades de avance, presiones","OXICORTE - TANAKA","£"]
[null,"4.4","Preparar todas las medidas de protección tanto colectiva como individual","TCC-MEC","£"]
[null,"4.5","Preparar equipo de corte por control numérico, introduciendo los parámetros determinados para obtener las piezas necesarias optimizando el material.","CORTE POR CNC","£"]
[null,"4.6","    Preparar equipos de corte mecánico o corte frío: CIZALLA","MEC","£"]
[null,"4.7","    Preparar equipos de corte mecánico o corte frío: SIERRA DE CINTA","TCC","£"]
[null,"4.8","    Preparar equipos de corte mecánico o corte frío: TRONZONADORA","TCC","£"]
[null,"4.9","    Preparar equipos de corte mecánico o corte frío:  PUNZONADORA","TCC","£"]
[null,"4.10","    Preparar equipos de corte mecánico o corte frío: AMOLADORA O RADIAL - ANGULAR","MEC","£"]
[null,"4.11","Marcado de los productos obtenidos en base a las especificaciones de los planos y en caso de requisitos de calidad la colada para la trazabilidad.","TCC","£"]
[null,"4.12","Realizar las operaciones de corte térmico a partir de los trazados obtenidos: teniendo en cuenta las deformaciones y defectos, derivados del proceso.","TCC","£"]
[null,"4.13","Realizar operaciones de corte térmico con plasma a partir de los trazados obtenidos: teniendo en cuenta las deformaciones y defectos, derivados del proceso.","TCC","£"]
[null,"4.14","Realizar operaciones de corte por control numérico introduciendo el lenguaje de programación y aplicando los parámetros necesarios para obtener el producto deseado.","TCC","£"]
[null,"4.15","Realizar operaciones de corte mecánico tanto en: sierra de cinta, cizalla, tronzadora, amoladora. Teniendo en cuenta los defectos y calidad de acabado requeridos.","MEC","£"]
[null,"4.16","Marcado de los productos obtenidos en base a las especificaciones de los planos y en caso de requisitos de calidad la colada para la trazabilidad.","TCC","£"]
[]
[null,"5","A-5 Mecanizado y conformado de chapas, perfiles y tubería"," ","£"]
[null,"5.1","A partir de los productos obtenidos de corte, el alumnado debe verificar los productos obtenidos y en caso de haber desviaciones producidas por el corte térmico así como deformaciones plásticas del suministro. Deberá realizar las correcciones necesarias bien por: Enderezado por calor, enderezado en prensa.","MEC-TCC","£"]
[null,"5.2","Preparación de bordes por procesos térmicos: espesor a soldar, geometría de la unión","TCC","£"]
[null,"5.3","    Realizar biselados por medios mecánicos: amolado, biseladora.","TCC","£"]
[null,"5.4","    Realizar operaciones de mecanizado: TALADRADO  ","MEC ","£"]
[null,"5.5","    Realizar operaciones de mecanizado: ROSCADO","MEC","£"]
[null,"5.6","    Realizar operaciones de mecanizado: ESCARIADO","MEC","£"]
[null,"5.7","    Realizar operaciones de mecanizado: AVELLANADO","TCC","£"]
[null,"5.8","Realizar operaciones de desbaste","MEC","£"]
[null,"5.9","Realizar CILINDRADO de chapas de virolas","MEC","£"]
[null,"5.2","Realizar CURVADO de troncos","TCC","£"]
[null,"5.3","Realizar PLEGADO de chapa en prensa plegadora","TCC","£"]
[null,"5.4","Fabricación de utillaje y plantillas necesarias para el proceso de conformado","TCC","£"]
[null,6,"A-6 Montaje de elementos de calderería, tubería y carpintería metálica"," ","£"]
[null,"6.1","Realizar operaciones básicas de soldadura tanto en proceso TIG, MAG, SMAW, que garanticen una correcta fijación de la unión para que el soldador pueda realizar a unión posteriormente: esta unión deberá cumplir con las especificaciones de los WPS y que garantice la correcta separación y alineamiento de la unión.","SAN-SAP","£"]
[null,"6.2","Realizar operaciones básicas de soldadura  proceso SMAW - TRANSFORMADOR O RECTIFICADOR","SAN-SAP","£"]
[null,"6.3","Realizar operaciones básicas de soldadura  proceso SEMIAUTOMÁTICO - GMAW- FCAW","SAN-SAP","£"]
[null,"6.5","Realizar operaciones básicas de soldadura  proceso GTAW","SAN-SAP","£"]
[null,"6.6","Realizar operaciones básicas de soldadura tanto en proceso TIG, MAG, SMAW, que garanticen una correcta fijación de la unión para que el soldador pueda realizar a unión posteriormente: esta unión deberá cumplir con las especificaciones de los WPS y que garantice la correcta separación y alineamiento de la unión.","SAN-SAP","£"]
[null,7,"A-1 En la oficina técnica y departamento de producción"," ","£"]
[null,"7.1","Mediante planos de fabricación el alumno debe relacionar: Sistemas de representaciones - Secciones roturas- Acotaciones","MONTAJE ","£"]
[null,"7.2","Realizar tareas con los cajetines de materiales de planos constructivos de la empresa: - identificar las piezas normalizadas en los planos: tornillería, accesorios de tubería, perfiles laminados, materiales – Manejar los catálogos de materiales y accesorios. Definiciones de dimensiones, características del material, aceros inoxidable, al carbono, aluminio, etc.","MONTAJE","£"]
[null,"7.3","Diferenciar los diferentes tipos de planos: planos de implantación, de conjunto, ortogonales, despiece, isométricos, P&D, As Built.","MONTAJE","£"]
[null,"7.4","Realizar croquizado de piezas de productos de calderería y tubería","MONTAJE","£"]
[null,8,"A-2 Acopio de materiales y preparación de materiales"," ","£"]
[null,"8.1","Recepción y acopio de materiales atendiendo a las características propias","TCC-MEC","£"]
[null,"8.2","Acondicionamiento del área de trabajo atendiendo a las propiedades de los materiales: aislamientos de apoyo, utillaje y herramientas.","TCC-MEC","£"]
[null,8,"A-6 Montaje de elementos de calderería, tubería y carpintería metálica"," ","£"]
[null,"8.1","Identificar los materiales prefabricados y acopiados atendiendo a las marcas de los planos y especificaciones de fabricación","MONTAJE ","£"]
[null,"8.2","Preparación de bancadas, plantillas, utillaje, esperas o derivados que sirvan para montaje","MONTAJE","£"]
[null,"8.1","Movimiento de cargas conociendo las características como pesos y geometrías de las cargas a mover, para su correcto eslingados e izado","MONTAJE","£"]
[null,"8.2","Manejo de puentes grúa o enganchador de cargas para su montaje. Atendiendo a la seguridad colectiva y personal","MONTAJE","£"]
[null,"8.1","Realizar el replanteos atendiendo a puntos de referencia, coordenadas, elevaciones, etc","MONTAJE","£"]
[null,"8.2","Realizar aplomes, nivelaciones, y las operaciones necesarias, que garanticen el correcto montaje de los elementos atendiendo a la normativa de calidad que recoja las tolerancias. Deberá incluir soportación auxiliar si fuera necesario, además de aplicar un correcto manejo de los elementos de elevación u posicionamiento, tales como grúas, polipastos, tensores, gatos, etc..","MONTAJE","£"]
[null,"8.1","Realizar operaciones de uniones soldadas y si es necesario utilizar utillaje como tensores, polipastos, gatos, etc.","MONTAJE","£"]
[null,"8.2","Conocimiento de los tipos de elementos de elevación auxiliar tales como andamios y carretillas elevadoras","MONTAJE","£"]
[null,"8.1","Realizar pruebas de estanquidad que garanticen los marcados CE o los estándares de calidad requeridos","MONTAJE","£"]
[null,"8.2","Conocimiento de los tratamientos superficiales que garantice el servicios y eviten la oxidación tales como: acabados de pintura, galvanizados, etc.","MONTAJE","£"]
[null,"8.1","Realizar operaciones básicas de soldadura tanto en proceso TIG, MAG, SMAW, que garanticen una correcta fijación de la unión para que el soldador pueda realizar a unión posteriormente: esta unión deberá cumplir con las especificaciones de los WPS y que garantice la correcta separación y alineamiento de la unión.","MONTAJE - SOLDADURA","£"]
[null,"8.2","Realizar operaciones con proceso SAW, teniendo en cuanta las variables del proceso","SAP","£"]
[null,"8.1","Realizar operaciones básicas de soldadura tanto en proceso TIG, MAG, SMAW, que garanticen una correcta fijación de la unión para que el soldador pueda realizar a unión posteriormente: esta unión deberá cumplir con las especificaciones de los WPS y que garantice la correcta separación y alineamiento de la unión.","MONTAJE - SOLDADURA","£"]
[null,"8.2","Realizar operaciones con proceso SAW, teniendo en cuanta las variables del proceso","SAP","£"]

{"sheet":"Check List-MEYCAGESAL","index":6,"n_rows":81,"n_cols":7,"rows_kept":81,"cut":false,"hidden":false,"merged":[[5,6,5,7]]}
[null,"FP-DUAL CICLO FORMATIVO DE GRADO MEDIO DE SOLDADURA Y CALDERERÍA"]
[null,"Check List",null,"Porcentaje completado",{"$f":"porcentaje(CheckList)","v":0.34920634920634919}]
[]
[null,"#","Elemento a comprobar\n(doble clic para expandir/colapsar)","Descripciones","Estado\n(doble clic para activar)"]
[]
[null,1,"A-1 En la oficina técnica y departamento de producción"," ","R",null,"ACTIVIDADES EMPRESA "]
[null,"1.1","Realizar tareas con los cajetines de materiales de planos constructivos de la empresa: - identificar las piezas normalizadas en los planos: tornillería, accesorios de tubería, perfiles laminados, materiales – Manejar los catálogos de materiales y accesorios. Definiciones de dimensiones, características del material, aceros inoxidable, al carbono, aluminio, etc.","MEC - TCC","R",null,"A:1 Completa: En la oficina técnica"]
[null,"1.2","Realizar croquizado de piezas de productos de calderería y tubería","TCC","R",null,"A:2 Completa: Acopio materiales"]
[null,null,null,null,null,null,"A:3 Completa: TCC"]
[null,2,"A-2 Acopio de materiales y preparación de materiales"," ","R",null,"A:4 Completa: Opera corte térmico"]
[null,"2.1","Identificar el material según sus características y formas comerciales","MEC","R",null,"A:5 Completa: Mecanizado y conformado"]
[null,"2.2","Recepción y acopio de materiales atendiendo a las características propias","TCC - MEC","R",null,"A:6 Completa: Montaje y soldeo"]
[null,"2.3","Acondicionamiento del área de trabajo atendiendo a las propiedades de los materiales: aislamientos de apoyo, utillaje y herramientas.","MEC-TCC-SAN","R",null,"Ir a Principal"]
[null,"2.4","Preparación de las piezas teniendo en cuenta los volúmenes y medios de transporte","MEC","R"]
[]
[null,3,"A-3 Trazado y corte"," ","£"]
[null,"3.1"," Identificar el material según sus características y formas comerciales","TCC","£"]
[null,"3.2"," Realizar los trazados necesarios para obtener los productos deseados","TCC","£"]
[null,"3.3","A partir de una chapa plana ser capaz de obtener el producto necesario corriendo las desviaciones de escuadrado o defectos producidos: este trazado se obtiene en un plano bidemensional","TCC","£"]
[null,"3.4"," A partir de tanto de perfiles comerciales como de tuberías realizar trazados en tres dimensiones: teniendo en cuenta el proceso de corte a utilizar deberá tener en cuenta la sangría o grueso derivado del proceso de corte","TCC","£"]
[]
[null,"4","A-4 Operar con equipos de corte térmico tanto manuales, como automáticos"," ","©"]
[null,"4.1","Preparar el equipo de oxicorte manual teniendo en cuenta: la naturaleza del material, el espesor de la pieza.","OXICORTE - SOPLETE","R"]
[null,"4.2","Preparara un equipo de plasma teniendo en cuenta las variables derivadas de: tipo de material, presiones,","EQUIPO DE PLASMA","R"]
[null,"4.3","Preparar un equipo de oxicorte semiautomático regulando: velocidades de avance, presiones","OXICORTE - TANAKA","R"]
[null,"4.4","Preparar todas las medidas de protección tanto colectiva como individual","TCC-MEC","£"]
[null,"4.5","Preparar equipo de corte por control numérico, introduciendo los parámetros determinados para obtener las piezas necesarias optimizando el material.","CORTE POR CNC","R"]
[null,"4.6","    Preparar equipos de corte mecánico o corte frío: CIZALLA","MEC","£"]
[null,"4.7","    Preparar equipos de corte mecánico o corte frío: SIERRA DE CINTA","TCC","£"]
[null,"4.8","    Preparar equipos de corte mecánico o corte frío: TRONZONADORA","TCC","£"]
[null,"4.9","    Preparar equipos de corte mecánico o corte frío:  PUNZONADORA","TCC","R"]
[null,"4.10","    Preparar equipos de corte mecánico o corte frío: AMOLADORA O RADIAL - ANGULAR","MEC","£"]
[null,"4.11","Marcado de los productos obtenidos en base a las especificaciones de los planos y en caso de requisitos de calidad la colada para la trazabilidad.","TCC","£"]
[null,"4.12","Realizar las operaciones de corte térmico a partir de los trazados obtenidos: teniendo en cuenta las deformaciones y defectos, derivados del proceso.","TCC","R"]
[null,"4.13","Realizar operaciones de corte térmico con plasma a partir de los trazados obtenidos: teniendo en cuenta las deformaciones y defectos, derivados del proceso.","TCC","R"]
[null,"4.14","Realizar operaciones de corte por control numérico introduciendo el lenguaje de programación y aplicando los parámetros necesarios para obtener el producto deseado.","TCC","R"]
[null,"4.15","Realizar operaciones de corte mecánico tanto en: sierra de cinta, cizalla, tronzadora, amoladora. Teniendo en cuenta los defectos y calidad de acabado requeridos.","MEC","£"]
[null,"4.16","Marcado de los productos obtenidos en base a las especificaciones de los planos y en caso de requisitos de calidad la colada para la trazabilidad.","TCC","R"]
[]
[null,"5","A-5 Mecanizado y conformado de chapas, perfiles y tubería"," ","£"]
[null,"5.1","A partir de los productos obtenidos de corte, el alumnado debe verificar los productos obtenidos y en caso de haber desviaciones producidas por el corte térmico así como deformaciones plásticas del suministro. Deberá realizar las correcciones necesarias bien por: Enderezado por calor, enderezado en prensa.","MEC-TCC","£"]
[null,"5.2","Preparación de bordes por procesos térmicos: espesor a soldar, geometría de la unión","TCC","£"]
[null,"5.3","    Realizar biselados por medios mecánicos: amolado, biseladora.","TCC","£"]
[null,"5.4","    Realizar operaciones de mecanizado: TALADRADO  ","MEC ","£"]
[null,"5.5","    Realizar operaciones de mecanizado: ROSCADO","MEC","£"]
[null,"5.6","    Realizar operaciones de mecanizado: ESCARIADO","MEC","£"]
[null,"5.7","    Realizar operaciones de mecanizado: AVELLANADO","TCC","£"]
[null,"5.8","Realizar operaciones de desbaste","MEC","£"]
[null,"5.9","Realizar CILINDRADO de chapas de virolas","MEC","£"]
[null,"5.2","Realizar CURVADO de troncos","TCC","£"]
[null,"5.3","Realizar PLEGADO de chapa en prensa plegadora","TCC","£"]
[null,"5.4","Fabricación de utillaje y plantillas necesarias para el proceso de conformado","TCC","£"]
[null,6,"A-6 Montaje de elementos de calderería, tubería y carpintería metálica"," ","R"]
[null,"6.1","Realizar operaciones básicas de soldadura tanto en proceso TIG, MAG, SMAW, que garanticen una correcta fijación de la unión para que el soldador pueda realizar a unión posteriormente: esta unión deberá cumplir con las especificaciones de los WPS y que garantice la correcta separación y alineamiento de la unión.","SAN-SAP","R"]
[null,"6.2","Realizar operaciones básicas de soldadura  proceso SMAW - TRANSFORMADOR O RECTIFICADOR","SAN-SAP","R"]
[null,"6.3","Realizar operaciones básicas de soldadura  proceso SEMIAUTOMÁTICO - GMAW- FCAW","SAN-SAP","R"]
[null,"6.5","Realizar operaciones básicas de soldadura  proceso GTAW","SAN-SAP","R"]
[null,"6.6","Realizar operaciones básicas de soldadura tanto en proceso TIG, MAG, SMAW, que garanticen una correcta fijación de la unión para que el soldador pueda realizar a unión posteriormente: esta unión deberá cumplir con las especificaciones de los WPS y que garantice la correcta separación y alineamiento de la unión.","SAN-SAP","R"]
[null,7,"A-1 En la oficina técnica y departamento de producción"," ","£"]
[null,"7.1","Mediante planos de fabricación el alumno debe relacionar: Sistemas de representaciones - Secciones roturas- Acotaciones","MONTAJE ","£"]
[null,"7.2","Realizar tareas con los cajetines de materiales de planos constructivos de la empresa: - identificar las piezas normalizadas en los planos: tornillería, accesorios de tubería, perfiles laminados, materiales – Manejar los catálogos de materiales y accesorios. Definiciones de dimensiones, características del material, aceros inoxidable, al carbono, aluminio, etc.","MONTAJE","£"]
[null,"7.3","Diferenciar los diferentes tipos de planos: planos de implantación, de conjunto, ortogonales, despiece, isométricos, P&D, As Built.","MONTAJE","£"]
[null,"7.4","Realizar croquizado de piezas de productos de calderería y tubería","MONTAJE","£"]
[null,8,"A-2 Acopio de materiales y preparación de materiales"," ","£"]
[null,"8.1","Recepción y acopio de materiales atendiendo a las características propias","TCC-MEC","£"]
[null,"8.2","Acondicionamiento del área de trabajo atendiendo a las propiedades de los materiales: aislamientos de apoyo, utillaje y herramientas.","TCC-MEC","£"]
[null,8,"A-6 Montaje de elementos de calderería, tubería y carpintería metálica"," ","©"]
[null,"8.1","Identificar los materiales prefabricados y acopiados atendiendo a las marcas de los planos y especificaciones de fabricación","MONTAJE ","£"]
[null,"8.2","Preparación de bancadas, plantillas, utillaje, esperas o derivados que sirvan para montaje","MONTAJE","£"]
[null,"8.1","Movimiento de cargas conociendo las características como pesos y geometrías de las cargas a mover, para su correcto eslingados e izado","MONTAJE","£"]
[null,"8.2","Manejo de puentes grúa o enganchador de cargas para su montaje. Atendiendo a la seguridad colectiva y personal","MONTAJE","£"]
[null,"8.1","Realizar el replanteos atendiendo a puntos de referencia, coordenadas, elevaciones, etc","MONTAJE","£"]
[null,"8.2","Realizar aplomes, nivelaciones, y las operaciones necesarias, que garanticen el correcto montaje de los elementos atendiendo a la normativa de calidad que recoja las tolerancias. Deberá incluir soportación auxiliar si fuera necesario, además de aplicar un correcto manejo de los elementos de elevación u posicionamiento, tales como grúas, polipastos, tensores, gatos, etc..","MONTAJE","£"]
[null,"8.1","Realizar operaciones de uniones soldadas y si es necesario utilizar utillaje como tensores, polipastos, gatos, etc.","MONTAJE","£"]
[null,"8.2","Conocimiento de los tipos de elementos de elevación auxiliar tales como andamios y carretillas elevadoras","MONTAJE","£"]
[null,"8.1","Realizar pruebas de estanquidad que garanticen los marcados CE o los estándares de calidad requeridos","MONTAJE","£"]
[null,"8.2","Conocimiento de los tratamientos superficiales que garantice el servicios y eviten la oxidación tales como: acabados de pintura, galvanizados, etc.","MONTAJE","£"]
[null,"8.1","Realizar operaciones básicas de soldadura tanto en proceso TIG, MAG, SMAW, que garanticen una correcta fijación de la unión para que el soldador pueda realizar a unión posteriormente: esta unión deberá cumplir con las especificaciones de los WPS y que garantice la correcta separación y alineamiento de la unión.","MONTAJE - SOLDADURA","R"]
[null,"8.2","Realizar operaciones con proceso SAW, teniendo en cuanta las variables del proceso","SAP","R"]
[null,"8.1","Realizar operaciones básicas de soldadura tanto en proceso TIG, MAG, SMAW, que garanticen una correcta fijación de la unión para que el soldador pueda realizar a unión posteriormente: esta unión deberá cumplir con las especificaciones de los WPS y que garantice la correcta separación y alineamiento de la unión.","MONTAJE - SOLDADURA","£"]
[null,"8.2","Realizar operaciones con proceso SAW, teniendo en cuanta las variables del proceso","SAP","£"]

{"sheet":"Check List-EQUIMANSUR","index":7,"n_rows":81,"n_cols":7,"rows_kept":81,"cut":false,"hidden":false,"merged":[[5,6,5,7]]}
[null,"FP-DUAL CICLO FORMATIVO DE GRADO MEDIO DE SOLDADURA Y CALDERERÍA"]
[null,"Check List",null,"Porcentaje completado",{"$f":"porcentaje(CheckList)","v":0.34920634920634919}]
[]
[null,"#","Elemento a comprobar\n(doble clic para expandir/colapsar)","Descripciones","Estado\n(doble clic para activar)"]
[]
[null,1,"A-1 En la oficina técnica y departamento de producción"," ","R",null,"ACTIVIDADES EMPRESA "]
[null,"1.1","Realizar tareas con los cajetines de materiales de planos constructivos de la empresa: - identificar las piezas normalizadas en los planos: tornillería, accesorios de tubería, perfiles laminados, materiales – Manejar los catálogos de materiales y accesorios. Definiciones de dimensiones, características del material, aceros inoxidable, al carbono, aluminio, etc.","MEC - TCC","R",null,"A:1 Completa: En la oficina técnica"]
[null,"1.2","Realizar croquizado de piezas de productos de calderería y tubería","TCC","R",null,"A:2 Completa: Acopio materiales"]
[null,null,null,null,null,null,"A:3 Completa: TCC"]
[null,2,"A-2 Acopio de materiales y preparación de materiales"," ","R",null,"A:4 Completa: Opera corte térmico"]
[null,"2.1","Identificar el material según sus características y formas comerciales","MEC","R",null,"A:5 Completa: Mecanizado y conformado"]
[null,"2.2","Recepción y acopio de materiales atendiendo a las características propias","TCC - MEC","R",null,"A:6 Completa: Montaje y soldeo"]
[null,"2.3","Acondicionamiento del área de trabajo atendiendo a las propiedades de los materiales: aislamientos de apoyo, utillaje y herramientas.","MEC-TCC-SAN","R",null,"Ir a Principal"]
[null,"2.4","Preparación de las piezas teniendo en cuenta los volúmenes y medios de transporte","MEC","R"]
[]
[null,3,"A-3 Trazado y corte"," ","£"]
[null,"3.1"," Identificar el material según sus características y formas comerciales","TCC","£"]
[null,"3.2"," Realizar los trazados necesarios para obtener los productos deseados","TCC","£"]
[null,"3.3","A partir de una chapa plana ser capaz de obtener el producto necesario corriendo las desviaciones de escuadrado o defectos producidos: este trazado se obtiene en un plano bidemensional","TCC","£"]
[null,"3.4"," A partir de tanto de perfiles comerciales como de tuberías realizar trazados en tres dimensiones: teniendo en cuenta el proceso de corte a utilizar deberá tener en cuenta la sangría o grueso derivado del proceso de corte","TCC","£"]
[]
[null,"4","A-4 Operar con equipos de corte térmico tanto manuales, como automáticos"," ","©"]
[null,"4.1","Preparar el equipo de oxicorte manual teniendo en cuenta: la naturaleza del material, el espesor de la pieza.","OXICORTE - SOPLETE","R"]
[null,"4.2","Preparara un equipo de plasma teniendo en cuenta las variables derivadas de: tipo de material, presiones,","EQUIPO DE PLASMA","R"]
[null,"4.3","Preparar un equipo de oxicorte semiautomático regulando: velocidades de avance, presiones","OXICORTE - TANAKA","R"]
[null,"4.4","Preparar todas las medidas de protección tanto colectiva como individual","TCC-MEC","£"]
[null,"4.5","Preparar equipo de corte por control numérico, introduciendo los parámetros determinados para obtener las piezas necesarias optimizando el material.","CORTE POR CNC","R"]
[null,"4.6","    Preparar equipos de corte mecánico o corte frío: CIZALLA","MEC","£"]
[null,"4.7","    Preparar equipos de corte mecánico o corte frío: SIERRA DE CINTA","TCC","£"]
[null,"4.8","    Preparar equipos de corte mecánico o corte frío: TRONZONADORA","TCC","£"]
[null,"4.9","    Preparar equipos de corte mecánico o corte frío:  PUNZONADORA","TCC","R"]
[null,"4.10","    Preparar equipos de corte mecánico o corte frío: AMOLADORA O RADIAL - ANGULAR","MEC","£"]
[null,"4.11","Marcado de los productos obtenidos en base a las especificaciones de los planos y en caso de requisitos de calidad la colada para la trazabilidad.","TCC","£"]
[null,"4.12","Realizar las operaciones de corte térmico a partir de los trazados obtenidos: teniendo en cuenta las deformaciones y defectos, derivados del proceso.","TCC","R"]
[null,"4.13","Realizar operaciones de corte térmico con plasma a partir de los trazados obtenidos: teniendo en cuenta las deformaciones y defectos, derivados del proceso.","TCC","R"]
[null,"4.14","Realizar operaciones de corte por control numérico introduciendo el lenguaje de programación y aplicando los parámetros necesarios para obtener el producto deseado.","TCC","R"]
[null,"4.15","Realizar operaciones de corte mecánico tanto en: sierra de cinta, cizalla, tronzadora, amoladora. Teniendo en cuenta los defectos y calidad de acabado requeridos.","MEC","£"]
[null,"4.16","Marcado de los productos obtenidos en base a las especificaciones de los planos y en caso de requisitos de calidad la colada para la trazabilidad.","TCC","R"]
[]
[null,"5","A-5 Mecanizado y conformado de chapas, perfiles y tubería"," ","£"]
[null,"5.1","A partir de los productos obtenidos de corte, el alumnado debe verificar los productos obtenidos y en caso de haber desviaciones producidas por el corte térmico así como deformaciones plásticas del suministro. Deberá realizar las correcciones necesarias bien por: Enderezado por calor, enderezado en prensa.","MEC-TCC","£"]
[null,"5.2","Preparación de bordes por procesos térmicos: espesor a soldar, geometría de la unión","TCC","£"]
[null,"5.3","    Realizar biselados por medios mecánicos: amolado, biseladora.","TCC","£"]
[null,"5.4","    Realizar operaciones de mecanizado: TALADRADO  ","MEC ","£"]
[null,"5.5","    Realizar operaciones de mecanizado: ROSCADO","MEC","£"]
[null,"5.6","    Realizar operaciones de mecanizado: ESCARIADO","MEC","£"]
[null,"5.7","    Realizar operaciones de mecanizado: AVELLANADO","TCC","£"]
[null,"5.8","Realizar operaciones de desbaste","MEC","£"]
[null,"5.9","Realizar CILINDRADO de chapas de virolas","MEC","£"]
[null,"5.2","Realizar CURVADO de troncos","TCC","£"]
[null,"5.3","Realizar PLEGADO de chapa en prensa plegadora","TCC","£"]
[null,"5.4","Fabricación de utillaje y plantillas necesarias para el proceso de conformado","TCC","£"]
[null,6,"A-6 Montaje de elementos de calderería, tubería y carpintería metálica"," ","R"]
[null,"6.1","Realizar operaciones básicas de soldadura tanto en proceso TIG, MAG, SMAW, que garanticen una correcta fijación de la unión para que el soldador pueda realizar a unión posteriormente: esta unión deberá cumplir con las especificaciones de los WPS y que garantice la correcta separación y alineamiento de la unión.","SAN-SAP","R"]
[null,"6.2","Realizar operaciones básicas de soldadura  proceso SMAW - TRANSFORMADOR O RECTIFICADOR","SAN-SAP","R"]
[null,"6.3","Realizar operaciones básicas de soldadura  proceso SEMIAUTOMÁTICO - GMAW- FCAW","SAN-SAP","R"]
[null,"6.5","Realizar operaciones básicas de soldadura  proceso GTAW","SAN-SAP","R"]
[null,"6.6","Realizar operaciones básicas de soldadura tanto en proceso TIG, MAG, SMAW, que garanticen una correcta fijación de la unión para que el soldador pueda realizar a unión posteriormente: esta unión deberá cumplir con las especificaciones de los WPS y que garantice la correcta separación y alineamiento de la unión.","SAN-SAP","R"]
[null,7,"A-1 En la oficina técnica y departamento de producción"," ","£"]
[null,"7.1","Mediante planos de fabricación el alumno debe relacionar: Sistemas de representaciones - Secciones roturas- Acotaciones","MONTAJE ","£"]
[null,"7.2","Realizar tareas con los cajetines de materiales de planos constructivos de la empresa: - identificar las piezas normalizadas en los planos: tornillería, accesorios de tubería, perfiles laminados, materiales – Manejar los catálogos de materiales y accesorios. Definiciones de dimensiones, características del material, aceros inoxidable, al carbono, aluminio, etc.","MONTAJE","£"]
[null,"7.3","Diferenciar los diferentes tipos de planos: planos de implantación, de conjunto, ortogonales, despiece, isométricos, P&D, As Built.","MONTAJE","£"]
[null,"7.4","Realizar croquizado de piezas de productos de calderería y tubería","MONTAJE","£"]
[null,8,"A-2 Acopio de materiales y preparación de materiales"," ","£"]
[null,"8.1","Recepción y acopio de materiales atendiendo a las características propias","TCC-MEC","£"]
[null,"8.2","Acondicionamiento del área de trabajo atendiendo a las propiedades de los materiales: aislamientos de apoyo, utillaje y herramientas.","TCC-MEC","£"]
[null,8,"A-6 Montaje de elementos de calderería, tubería y carpintería metálica"," ","©"]
[null,"8.1","Identificar los materiales prefabricados y acopiados atendiendo a las marcas de los planos y especificaciones de fabricación","MONTAJE ","£"]
[null,"8.2","Preparación de bancadas, plantillas, utillaje, esperas o derivados que sirvan para montaje","MONTAJE","£"]
[null,"8.1","Movimiento de cargas conociendo las características como pesos y geometrías de las cargas a mover, para su correcto eslingados e izado","MONTAJE","£"]
[null,"8.2","Manejo de puentes grúa o enganchador de cargas para su montaje. Atendiendo a la seguridad colectiva y personal","MONTAJE","£"]
[null,"8.1","Realizar el replanteos atendiendo a puntos de referencia, coordenadas, elevaciones, etc","MONTAJE","£"]
[null,"8.2","Realizar aplomes, nivelaciones, y las operaciones necesarias, que garanticen el correcto montaje de los elementos atendiendo a la normativa de calidad que recoja las tolerancias. Deberá incluir soportación auxiliar si fuera necesario, además de aplicar un correcto manejo de los elementos de elevación u posicionamiento, tales como grúas, polipastos, tensores, gatos, etc..","MONTAJE","£"]
[null,"8.1","Realizar operaciones de uniones soldadas y si es necesario utilizar utillaje como tensores, polipastos, gatos, etc.","MONTAJE","£"]
[null,"8.2","Conocimiento de los tipos de elementos de elevación auxiliar tales como andamios y carretillas elevadoras","MONTAJE","£"]
[null,"8.1","Realizar pruebas de estanquidad que garanticen los marcados CE o los estándares de calidad requeridos","MONTAJE","£"]
[null,"8.2","Conocimiento de los tratamientos superficiales que garantice el servicios y eviten la oxidación tales como: acabados de pintura, galvanizados, etc.","MONTAJE","£"]
[null,"8.1","Realizar operaciones básicas de soldadura tanto en proceso TIG, MAG, SMAW, que garanticen una correcta fijación de la unión para que el soldador pueda realizar a unión posteriormente: esta unión deberá cumplir con las especificaciones de los WPS y que garantice la correcta separación y alineamiento de la unión.","MONTAJE - SOLDADURA","R"]
[null,"8.2","Realizar operaciones con proceso SAW, teniendo en cuanta las variables del proceso","SAP","R"]
[null,"8.1","Realizar operaciones básicas de soldadura tanto en proceso TIG, MAG, SMAW, que garanticen una correcta fijación de la unión para que el soldador pueda realizar a unión posteriormente: esta unión deberá cumplir con las especificaciones de los WPS y que garantice la correcta separación y alineamiento de la unión.","MONTAJE - SOLDADURA","£"]
[null,"8.2","Realizar operaciones con proceso SAW, teniendo en cuanta las variables del proceso","SAP","£"]

{"sheet":"Check List-HIERROS ISLEÑOS","index":8,"n_rows":81,"n_cols":7,"rows_kept":81,"cut":false,"hidden":false,"merged":[[5,6,5,7]]}
[null,"FP-DUAL CICLO FORMATIVO DE GRADO MEDIO DE SOLDADURA Y CALDERERÍA"]
[null,"Check List",null,"Porcentaje completado",{"$f":"porcentaje(CheckList)","v":0.34920634920634919}]
[]
[null,"#","Elemento a comprobar\n(doble clic para expandir/colapsar)","Descripciones","Estado\n(doble clic para activar)"]
[]
[null,1,"A-1 En la oficina técnica y departamento de producción"," ","R",null,"ACTIVIDADES EMPRESA "]
[null,"1.1","Realizar tareas con los cajetines de materiales de planos constructivos de la empresa: - identificar las piezas normalizadas en los planos: tornillería, accesorios de tubería, perfiles laminados, materiales – Manejar los catálogos de materiales y accesorios. Definiciones de dimensiones, características del material, aceros inoxidable, al carbono, aluminio, etc.","MEC - TCC","R",null,"A:1 Completa: En la oficina técnica"]
[null,"1.2","Realizar croquizado de piezas de productos de calderería y tubería","TCC","R",null,"A:2 Completa: Acopio materiales"]
[null,null,null,null,null,null,"A:3 Completa: TCC"]
[null,2,"A-2 Acopio de materiales y preparación de materiales"," ","R",null,"A:4 Completa: Opera corte térmico"]
[null,"2.1","Identificar el material según sus características y formas comerciales","MEC","R",null,"A:5 Completa: Mecanizado y conformado"]
[null,"2.2","Recepción y acopio de materiales atendiendo a las características propias","TCC - MEC","R",null,"A:6 Completa: Montaje y soldeo"]
[null,"2.3","Acondicionamiento del área de trabajo atendiendo a las propiedades de los materiales: aislamientos de apoyo, utillaje y herramientas.","MEC-TCC-SAN","R",null,"Ir a Principal"]
[null,"2.4","Preparación de las piezas teniendo en cuenta los volúmenes y medios de transporte","MEC","R"]
[]
[null,3,"A-3 Trazado y corte"," ","£"]
[null,"3.1"," Identificar el material según sus características y formas comerciales","TCC","£"]
[null,"3.2"," Realizar los trazados necesarios para obtener los productos deseados","TCC","£"]
[null,"3.3","A partir de una chapa plana ser capaz de obtener el producto necesario corriendo las desviaciones de escuadrado o defectos producidos: este trazado se obtiene en un plano bidemensional","TCC","£"]
[null,"3.4"," A partir de tanto de perfiles comerciales como de tuberías realizar trazados en tres dimensiones: teniendo en cuenta el proceso de corte a utilizar deberá tener en cuenta la sangría o grueso derivado del proceso de corte","TCC","£"]
[]
[null,"4","A-4 Operar con equipos de corte térmico tanto manuales, como automáticos"," ","©"]
[null,"4.1","Preparar el equipo de oxicorte manual teniendo en cuenta: la naturaleza del material, el espesor de la pieza.","OXICORTE - SOPLETE","R"]
[null,"4.2","Preparara un equipo de plasma teniendo en cuenta las variables derivadas de: tipo de material, presiones,","EQUIPO DE PLASMA","R"]
[null,"4.3","Preparar un equipo de oxicorte semiautomático regulando: velocidades de avance, presiones","OXICORTE - TANAKA","R"]
[null,"4.4","Preparar todas las medidas de protección tanto colectiva como individual","TCC-MEC","£"]
[null,"4.5","Preparar equipo de corte por control numérico, introduciendo los parámetros determinados para obtener las piezas necesarias optimizando el material.","CORTE POR CNC","R"]
[null,"4.6","    Preparar equipos de corte mecánico o corte frío: CIZALLA","MEC","£"]
[null,"4.7","    Preparar equipos de corte mecánico o corte frío: SIERRA DE CINTA","TCC","£"]
[null,"4.8","    Preparar equipos de corte mecánico o corte frío: TRONZONADORA","TCC","£"]
[null,"4.9","    Preparar equipos de corte mecánico o corte frío:  PUNZONADORA","TCC","R"]
[null,"4.10","    Preparar equipos de corte mecánico o corte frío: AMOLADORA O RADIAL - ANGULAR","MEC","£"]
[null,"4.11","Marcado de los productos obtenidos en base a las especificaciones de los planos y en caso de requisitos de calidad la colada para la trazabilidad.","TCC","£"]
[null,"4.12","Realizar las operaciones de corte térmico a partir de los trazados obtenidos: teniendo en cuenta las deformaciones y defectos, derivados del proceso.","TCC","R"]
[null,"4.13","Realizar operaciones de corte térmico con plasma a partir de los trazados obtenidos: teniendo en cuenta las deformaciones y defectos, derivados del proceso.","TCC","R"]
[null,"4.14","Realizar operaciones de corte por control numérico introduciendo el lenguaje de programación y aplicando los parámetros necesarios para obtener el producto deseado.","TCC","R"]
[null,"4.15","Realizar operaciones de corte mecánico tanto en: sierra de cinta, cizalla, tronzadora, amoladora. Teniendo en cuenta los defectos y calidad de acabado requeridos.","MEC","£"]
[null,"4.16","Marcado de los productos obtenidos en base a las especificaciones de los planos y en caso de requisitos de calidad la colada para la trazabilidad.","TCC","R"]
[]
[null,"5","A-5 Mecanizado y conformado de chapas, perfiles y tubería"," ","£"]
[null,"5.1","A partir de los productos obtenidos de corte, el alumnado debe verificar los productos obtenidos y en caso de haber desviaciones producidas por el corte térmico así como deformaciones plásticas del suministro. Deberá realizar las correcciones necesarias bien por: Enderezado por calor, enderezado en prensa.","MEC-TCC","£"]
[null,"5.2","Preparación de bordes por procesos térmicos: espesor a soldar, geometría de la unión","TCC","£"]
[null,"5.3","    Realizar biselados por medios mecánicos: amolado, biseladora.","TCC","£"]
[null,"5.4","    Realizar operaciones de mecanizado: TALADRADO  ","MEC ","£"]
[null,"5.5","    Realizar operaciones de mecanizado: ROSCADO","MEC","£"]
[null,"5.6","    Realizar operaciones de mecanizado: ESCARIADO","MEC","£"]
[null,"5.7","    Realizar operaciones de mecanizado: AVELLANADO","TCC","£"]
[null,"5.8","Realizar operaciones de desbaste","MEC","£"]
[null,"5.9","Realizar CILINDRADO de chapas de virolas","MEC","£"]
[null,"5.2","Realizar CURVADO de troncos","TCC","£"]
[null,"5.3","Realizar PLEGADO de chapa en prensa plegadora","TCC","£"]
[null,"5.4","Fabricación de utillaje y plantillas necesarias para el proceso de conformado","TCC","£"]
[null,6,"A-6 Montaje de elementos de calderería, tubería y carpintería metálica"," ","R"]
[null,"6.1","Realizar operaciones básicas de soldadura tanto en proceso TIG, MAG, SMAW, que garanticen una correcta fijación de la unión para que el soldador pueda realizar a unión posteriormente: esta unión deberá cumplir con las especificaciones de los WPS y que garantice la correcta separación y alineamiento de la unión.","SAN-SAP","R"]
[null,"6.2","Realizar operaciones básicas de soldadura  proceso SMAW - TRANSFORMADOR O RECTIFICADOR","SAN-SAP","R"]
[null,"6.3","Realizar operaciones básicas de soldadura  proceso SEMIAUTOMÁTICO - GMAW- FCAW","SAN-SAP","R"]
[null,"6.5","Realizar operaciones básicas de soldadura  proceso GTAW","SAN-SAP","R"]
[null,"6.6","Realizar operaciones básicas de soldadura tanto en proceso TIG, MAG, SMAW, que garanticen una correcta fijación de la unión para que el soldador pueda realizar a unión posteriormente: esta unión deberá cumplir con las especificaciones de los WPS y que garantice la correcta separación y alineamiento de la unión.","SAN-SAP","R"]
[null,7,"A-1 En la oficina técnica y departamento de producción"," ","£"]
[null,"7.1","Mediante planos de fabricación el alumno debe relacionar: Sistemas de representaciones - Secciones roturas- Acotaciones","MONTAJE ","£"]
[null,"7.2","Realizar tareas con los cajetines de materiales de planos constructivos de la empresa: - identificar las piezas normalizadas en los planos: tornillería, accesorios de tubería, perfiles laminados, materiales – Manejar los catálogos de materiales y accesorios. Definiciones de dimensiones, características del material, aceros inoxidable, al carbono, aluminio, etc.","MONTAJE","£"]
[null,"7.3","Diferenciar los diferentes tipos de planos: planos de implantación, de conjunto, ortogonales, despiece, isométricos, P&D, As Built.","MONTAJE","£"]
[null,"7.4","Realizar croquizado de piezas de productos de calderería y tubería","MONTAJE","£"]
[null,8,"A-2 Acopio de materiales y preparación de materiales"," ","£"]
[null,"8.1","Recepción y acopio de materiales atendiendo a las características propias","TCC-MEC","£"]
[null,"8.2","Acondicionamiento del área de trabajo atendiendo a las propiedades de los materiales: aislamientos de apoyo, utillaje y herramientas.","TCC-MEC","£"]
[null,8,"A-6 Montaje de elementos de calderería, tubería y carpintería metálica"," ","©"]
[null,"8.1","Identificar los materiales prefabricados y acopiados atendiendo a las marcas de los planos y especificaciones de fabricación","MONTAJE ","£"]
[null,"8.2","Preparación de bancadas, plantillas, utillaje, esperas o derivados que sirvan para montaje","MONTAJE","£"]
[null,"8.1","Movimiento de cargas conociendo las características como pesos y geometrías de las cargas a mover, para su correcto eslingados e izado","MONTAJE","£"]
[null,"8.2","Manejo de puentes grúa o enganchador de cargas para su montaje. Atendiendo a la seguridad colectiva y personal","MONTAJE","£"]
[null,"8.1","Realizar el replanteos atendiendo a puntos de referencia, coordenadas, elevaciones, etc","MONTAJE","£"]
[null,"8.2","Realizar aplomes, nivelaciones, y las operaciones necesarias, que garanticen el correcto montaje de los elementos atendiendo a la normativa de calidad que recoja las tolerancias. Deberá incluir soportación auxiliar si fuera necesario, además de aplicar un correcto manejo de los elementos de elevación u posicionamiento, tales como grúas, polipastos, tensores, gatos, etc..","MONTAJE","£"]
[null,"8.1","Realizar operaciones de uniones soldadas y si es necesario utilizar utillaje como tensores, polipastos, gatos, etc.","MONTAJE","£"]
[null,"8.2","Conocimiento de los tipos de elementos de elevación auxiliar tales como andamios y carretillas elevadoras","MONTAJE","£"]
[null,"8.1","Realizar pruebas de estanquidad que garanticen los marcados CE o los estándares de calidad requeridos","MONTAJE","£"]
[null,"8.2","Conocimiento de los tratamientos superficiales que garantice el servicios y eviten la oxidación tales como: acabados de pintura, galvanizados, etc.","MONTAJE","£"]
[null,"8.1","Realizar operaciones básicas de soldadura tanto en proceso TIG, MAG, SMAW, que garanticen una correcta fijación de la unión para que el soldador pueda realizar a unión posteriormente: esta unión deberá cumplir con las especificaciones de los WPS y que garantice la correcta separación y alineamiento de la unión.","MONTAJE - SOLDADURA","R"]
[null,"8.2","Realizar operaciones con proceso SAW, teniendo en cuanta las variables del proceso","SAP","R"]
[null,"8.1","Realizar operaciones básicas de soldadura tanto en proceso TIG, MAG, SMAW, que garanticen una correcta fijación de la unión para que el soldador pueda realizar a unión posteriormente: esta unión deberá cumplir con las especificaciones de los WPS y que garantice la correcta separación y alineamiento de la unión.","MONTAJE - SOLDADURA","£"]
[null,"8.2","Realizar operaciones con proceso SAW, teniendo en cuanta las variables del proceso","SAP","£"]

{"sheet":"Check List-CRISTALVEN","index":9,"n_rows":79,"n_cols":7,"rows_kept":79,"cut":false,"hidden":false,"merged":[[5,6,5,7]]}
[null,"FP-DUAL CICLO FORMATIVO DE GRADO MEDIO DE SOLDADURA Y CALDERERÍA"]
[null,"Check List",null,"Porcentaje completado",{"$f":"porcentaje(CheckList)","v":0.26229508196721313}]
[]
[null,"#","Elemento a comprobar\n(doble clic para expandir/colapsar)","Descripciones","Estado\n(doble clic para activar)"]
[]
[null,1,"A-1 En la oficina técnica y departamento de producción"," ","£",null,"ACTIVIDADES EMPRESA "]
[null,"1.1","Realizar tareas con los cajetines de materiales de planos constructivos de la empresa: - identificar las piezas normalizadas en los planos: tornillería, accesorios de tubería, perfiles laminados, materiales – Manejar los catálogos de materiales y accesorios. Definiciones de dimensiones, características del material, aceros inoxidable, al carbono, aluminio, etc.","MEC - TCC","£",null,"A:1 Completa: En la oficina técnica"]
[null,"1.2","Realizar croquizado de piezas de productos de calderería y tubería","TCC","£",null,"A:2 Completa: Acopio materiales"]
[null,null,null,null,null,null,"A:3 Completa: TCC"]
[null,2,"A-2 Acopio de materiales y preparación de materiales"," ","£",null,"A:4 Completa: Opera corte térmico"]
[null,"2.1","Identificar el material según sus características y formas comerciales","MEC","£",null,"A:5 Completa: Mecanizado y conformado"]
[null,"2.2","Recepción y acopio de materiales atendiendo a las características propias","TCC - MEC","£",null,"A:6 Completa: Montaje y soldeo"]
[null,"2.3","Acondicionamiento del área de trabajo atendiendo a las propiedades de los materiales: aislamientos de apoyo, utillaje y herramientas.","MEC-TCC-SAN","£",null,"Ir a Principal"]
[null,"2.4","Preparación de las piezas teniendo en cuenta los volúmenes y medios de transporte","MEC","£"]
[]
[null,3,"A-3 Trazado y corte"," ","£"]
[null,"3.1"," Identificar el material según sus características y formas comerciales","TCC","£"]
[null,"3.2"," Realizar los trazados necesarios para obtener los productos deseados","TCC","£"]
[null,"3.3","A partir de una chapa plana ser capaz de obtener el producto necesario corriendo las desviaciones de escuadrado o defectos producidos: este trazado se obtiene en un plano bidemensional","TCC","£"]
[null,"3.4"," A partir de tanto de perfiles comerciales como de tuberías realizar trazados en tres dimensiones: teniendo en cuenta el proceso de corte a utilizar deberá tener en cuenta la sangría o grueso derivado del proceso de corte","TCC","£"]
[]
[null,"4","A-4 Operar con equipos de corte térmico tanto manuales, como automáticos"," ","©"]
[null,"4.1","Preparar el equipo de oxicorte manual teniendo en cuenta: la naturaleza del material, el espesor de la pieza.","OXICORTE - SOPLETE","R"]
[null,"4.2","Preparara un equipo de plasma teniendo en cuenta las variables derivadas de: tipo de material, presiones,","EQUIPO DE PLASMA","R"]
[null,"4.3","Preparar un equipo de oxicorte semiautomático regulando: velocidades de avance, presiones","OXICORTE - TANAKA","R"]
[null,"4.4","Preparar todas las medidas de protección tanto colectiva como individual","TCC-MEC","£"]
[null,"4.5","Preparar equipo de corte por control numérico, introduciendo los parámetros determinados para obtener las piezas necesarias optimizando el material.","CORTE POR CNC","R"]
[null,"4.6","    Preparar equipos de corte mecánico o corte frío: CIZALLA","MEC","£"]
[null,"4.7","    Preparar equipos de corte mecánico o corte frío: SIERRA DE CINTA","TCC","£"]
[null,"4.8","    Preparar equipos de corte mecánico o corte frío: TRONZONADORA","TCC","£"]
[null,"4.9","    Preparar equipos de corte mecánico o corte frío:  PUNZONADORA","TCC","R"]
[null,"4.10","    Preparar equipos de corte mecánico o corte frío: AMOLADORA O RADIAL - ANGULAR","MEC","£"]
[null,"4.11","Marcado de los productos obtenidos en base a las especificaciones de los planos y en caso de requisitos de calidad la colada para la trazabilidad.","TCC","£"]
[null,"4.12","Realizar las operaciones de corte térmico a partir de los trazados obtenidos: teniendo en cuenta las deformaciones y defectos, derivados del proceso.","TCC","R"]
[null,"4.13","Realizar operaciones de corte térmico con plasma a partir de los trazados obtenidos: teniendo en cuenta las deformaciones y defectos, derivados del proceso.","TCC","R"]
[null,"4.14","Realizar operaciones de corte por control numérico introduciendo el lenguaje de programación y aplicando los parámetros necesarios para obtener el producto deseado.","TCC","R"]
[null,"4.15","Realizar operaciones de corte mecánico tanto en: sierra de cinta, cizalla, tronzadora, amoladora. Teniendo en cuenta los defectos y calidad de acabado requeridos.","MEC","£"]
[null,"4.16","Marcado de los productos obtenidos en base a las especificaciones de los planos y en caso de requisitos de calidad la colada para la trazabilidad.","TCC","R"]
[]
[null,"5","A-5 Mecanizado y conformado de chapas, perfiles y tubería"," ","£"]
[null,"5.1","A partir de los productos obtenidos de corte, el alumnado debe verificar los productos obtenidos y en caso de haber desviaciones producidas por el corte térmico así como deformaciones plásticas del suministro. Deberá realizar las correcciones necesarias bien por: Enderezado por calor, enderezado en prensa.","MEC-TCC","£"]
[null,"5.2","Preparación de bordes por procesos térmicos: espesor a soldar, geometría de la unión","TCC","£"]
[null,"5.3","    Realizar biselados por medios mecánicos: amolado, biseladora.","TCC","£"]
[null,"5.4","    Realizar operaciones de mecanizado: TALADRADO  ","MEC ","£"]
[null,"5.5","    Realizar operaciones de mecanizado: ROSCADO","MEC","£"]
[null,"5.6","    Realizar operaciones de mecanizado: ESCARIADO","MEC","£"]
[null,"5.7","    Realizar operaciones de mecanizado: AVELLANADO","TCC","£"]
[null,"5.8","Realizar operaciones de desbaste","MEC","£"]
[null,"5.9","Realizar CILINDRADO de chapas de virolas","MEC","£"]
[null,"5.2","Realizar CURVADO de troncos","TCC","£"]
[null,"5.3","Realizar PLEGADO de chapa en prensa plegadora","TCC","£"]
[null,"5.4","Fabricación de utillaje y plantillas necesarias para el proceso de conformado","TCC","£"]
[null,6,"A-6 Montaje de elementos de calderería, tubería y carpintería metálica"," ","R"]
[null,"6.1","Realizar operaciones básicas de soldadura tanto en proceso TIG, MAG, SMAW, que garanticen una correcta fijación de la unión para que el soldador pueda realizar a unión posteriormente: esta unión deberá cumplir con las especificaciones de los WPS y que garantice la correcta separación y alineamiento de la unión.","SAN-SAP","R"]
[null,"6.2","Realizar operaciones básicas de soldadura  proceso SMAW - TRANSFORMADOR O RECTIFICADOR","SAN-SAP","R"]
[null,"6.3","Realizar operaciones básicas de soldadura  proceso SEMIAUTOMÁTICO - GMAW- FCAW","SAN-SAP","R"]
[null,"6.5","Realizar operaciones básicas de soldadura  proceso GTAW","SAN-SAP","R"]
[null,"6.6","Realizar operaciones básicas de soldadura tanto en proceso TIG, MAG, SMAW, que garanticen una correcta fijación de la unión para que el soldador pueda realizar a unión posteriormente: esta unión deberá cumplir con las especificaciones de los WPS y que garantice la correcta separación y alineamiento de la unión.","SAN-SAP","R"]
[null,7,"A-1 En la oficina técnica y departamento de producción"," ","£"]
[null,"7.1","Mediante planos de fabricación el alumno debe relacionar: Sistemas de representaciones - Secciones roturas- Acotaciones","MONTAJE ","£"]
[null,"7.2","Realizar tareas con los cajetines de materiales de planos constructivos de la empresa: - identificar las piezas normalizadas en los planos: tornillería, accesorios de tubería, perfiles laminados, materiales – Manejar los catálogos de materiales y accesorios. Definiciones de dimensiones, características del material, aceros inoxidable, al carbono, aluminio, etc.","MONTAJE","£"]
[null,"7.3","Diferenciar los diferentes tipos de planos: planos de implantación, de conjunto, ortogonales, despiece, isométricos, P&D, As Built.","MONTAJE","£"]
[null,"7.4","Realizar croquizado de piezas de productos de calderería y tubería","MONTAJE","£"]
[null,8,"A-2 Acopio de materiales y preparación de materiales"," ","£"]
[null,"8.1","Recepción y acopio de materiales atendiendo a las características propias","TCC-MEC","£"]
[null,"8.2","Acondicionamiento del área de trabajo atendiendo a las propiedades de los materiales: aislamientos de apoyo, utillaje y herramientas.","TCC-MEC","£"]
[null,8,"A-6 Montaje de elementos de calderería, tubería y carpintería metálica"," ","©"]
[null,"8.1","Identificar los materiales prefabricados y acopiados atendiendo a las marcas de los planos y especificaciones de fabricación","MONTAJE ","£"]
[null,"8.2","Preparación de bancadas, plantillas, utillaje, esperas o derivados que sirvan para montaje","MONTAJE","£"]
[null,"8.1","Movimiento de cargas conociendo las características como pesos y geometrías de las cargas a mover, para su correcto eslingados e izado","MONTAJE","£"]
[null,"8.2","Manejo de puentes grúa o enganchador de cargas para su montaje. Atendiendo a la seguridad colectiva y personal","MONTAJE","£"]
[null,"8.1","Realizar el replanteos atendiendo a puntos de referencia, coordenadas, elevaciones, etc","MONTAJE","£"]
[null,"8.2","Realizar aplomes, nivelaciones, y las operaciones necesarias, que garanticen el correcto montaje de los elementos atendiendo a la normativa de calidad que recoja las tolerancias. Deberá incluir soportación auxiliar si fuera necesario, además de aplicar un correcto manejo de los elementos de elevación u posicionamiento, tales como grúas, polipastos, tensores, gatos, etc..","MONTAJE","£"]
[null,"8.1","Realizar operaciones de uniones soldadas y si es necesario utilizar utillaje como tensores, polipastos, gatos, etc.","MONTAJE","£"]
[null,"8.2","Conocimiento de los tipos de elementos de elevación auxiliar tales como andamios y carretillas elevadoras","MONTAJE","£"]
[null,"8.1","Realizar pruebas de estanquidad que garanticen los marcados CE o los estándares de calidad requeridos","MONTAJE","£"]
[null,"8.2","Conocimiento de los tratamientos superficiales que garantice el servicios y eviten la oxidación tales como: acabados de pintura, galvanizados, etc.","MONTAJE","£"]
[null,"8.1","Realizar operaciones básicas de soldadura tanto en proceso TIG, MAG, SMAW, que garanticen una correcta fijación de la unión para que el soldador pueda realizar a unión posteriormente: esta unión deberá cumplir con las especificaciones de los WPS y que garantice la correcta separación y alineamiento de la unión.","MONTAJE - SOLDADURA","R"]
[null,"8.2","Realizar operaciones con proceso SAW, teniendo en cuanta las variables del proceso","SAP","R"]

{"sheet":"Check List-TINCASUR","index":10,"n_rows":81,"n_cols":7,"rows_kept":81,"cut":false,"hidden":false,"merged":[[5,6,5,7]]}
[null,"FP-DUAL CICLO FORMATIVO DE GRADO MEDIO DE SOLDADURA Y CALDERERÍA"]
[null,"Check List",null,"Porcentaje completado",{"$f":"porcentaje(CheckList)","v":0},null,{"$f":"PRINCIPAL!I10","v":0}]
[]
[null,"#","Elemento a comprobar\n(doble clic para expandir/colapsar)","Descripciones","Estado\n(doble clic para activar)"]
[]
[null,1,"A-1 En la oficina técnica y departamento de producción"," ","£",null,"ACTIVIDADES EMPRESA "]
[null,"1.1","Realizar tareas con los cajetines de materiales de planos constructivos de la empresa: - identificar las piezas normalizadas en los planos: tornillería, accesorios de tubería, perfiles laminados, materiales – Manejar los catálogos de materiales y accesorios. Definiciones de dimensiones, características del material, aceros inoxidable, al carbono, aluminio, etc.","MEC - TCC","£",null,"A:1 Completa: En la oficina técnica"]
[null,"1.2","Realizar croquizado de piezas de productos de calderería y tubería","TCC","£",null,"A:2 Completa: Acopio materiales"]
[null,null,null,null,null,null,"A:3 Completa: TCC"]
[null,2,"A-2 Acopio de materiales y preparación de materiales"," ","£",null,"A:4 Completa: Opera corte térmico"]
[null,"2.1","Identificar el material según sus características y formas comerciales","MEC","£",null,"A:5 Completa: Mecanizado y conformado"]
[null,"2.2","Recepción y acopio de materiales atendiendo a las características propias","TCC - MEC","£",null,"A:6 Completa: Montaje y soldeo"]
[null,"2.3","Acondicionamiento del área de trabajo atendiendo a las propiedades de los materiales: aislamientos de apoyo, utillaje y herramientas.","MEC-TCC-SAN","£",null,"Ir a Principal"]
[null,"2.4","Preparación de las piezas teniendo en cuenta los volúmenes y medios de transporte","MEC","£"]
[]
[null,3,"A-3 Trazado y corte"," ","£"]
[null,"3.1"," Identificar el material según sus características y formas comerciales","TCC","£"]
[null,"3.2"," Realizar los trazados necesarios para obtener los productos deseados","TCC","£"]
[null,"3.3","A partir de una chapa plana ser capaz de obtener el producto necesario corriendo las desviaciones de escuadrado o defectos producidos: este trazado se obtiene en un plano bidemensional","TCC","£"]
[null,"3.4"," A partir de tanto de perfiles comerciales como de tuberías realizar trazados en tres dimensiones: teniendo en cuenta el proceso de corte a utilizar deberá tener en cuenta la sangría o grueso derivado del proceso de corte","TCC","£"]
[]
[null,"4","A-4 Operar con equipos de corte térmico tanto manuales, como automáticos"," ","£"]
[null,"4.1","Preparar el equipo de oxicorte manual teniendo en cuenta: la naturaleza del material, el espesor de la pieza.","OXICORTE - SOPLETE","£"]
[null,"4.2","Preparara un equipo de plasma teniendo en cuenta las variables derivadas de: tipo de material, presiones,","EQUIPO DE PLASMA","£"]
[null,"4.3","Preparar un equipo de oxicorte semiautomático regulando: velocidades de avance, presiones","OXICORTE - TANAKA","£"]
[null,"4.4","Preparar todas las medidas de protección tanto colectiva como individual","TCC-MEC","£"]
[null,"4.5","Preparar equipo de corte por control numérico, introduciendo los parámetros determinados para obtener las piezas necesarias optimizando el material.","CORTE POR CNC","£"]
[null,"4.6","    Preparar equipos de corte mecánico o corte frío: CIZALLA","MEC","£"]
[null,"4.7","    Preparar equipos de corte mecánico o corte frío: SIERRA DE CINTA","TCC","£"]
[null,"4.8","    Preparar equipos de corte mecánico o corte frío: TRONZONADORA","TCC","£"]
[null,"4.9","    Preparar equipos de corte mecánico o corte frío:  PUNZONADORA","TCC","£"]
[null,"4.10","    Preparar equipos de corte mecánico o corte frío: AMOLADORA O RADIAL - ANGULAR","MEC","£"]
[null,"4.11","Marcado de los productos obtenidos en base a las especificaciones de los planos y en caso de requisitos de calidad la colada para la trazabilidad.","TCC","£"]
[null,"4.12","Realizar las operaciones de corte térmico a partir de los trazados obtenidos: teniendo en cuenta las deformaciones y defectos, derivados del proceso.","TCC","£"]
[null,"4.13","Realizar operaciones de corte térmico con plasma a partir de los trazados obtenidos: teniendo en cuenta las deformaciones y defectos, derivados del proceso.","TCC","£"]
[null,"4.14","Realizar operaciones de corte por control numérico introduciendo el lenguaje de programación y aplicando los parámetros necesarios para obtener el producto deseado.","TCC","£"]
[null,"4.15","Realizar operaciones de corte mecánico tanto en: sierra de cinta, cizalla, tronzadora, amoladora. Teniendo en cuenta los defectos y calidad de acabado requeridos.","MEC","£"]
[null,"4.16","Marcado de los productos obtenidos en base a las especificaciones de los planos y en caso de requisitos de calidad la colada para la trazabilidad.","TCC","£"]
[]
[null,"5","A-5 Mecanizado y conformado de chapas, perfiles y tubería"," ","£"]
[null,"5.1","A partir de los productos obtenidos de corte, el alumnado debe verificar los productos obtenidos y en caso de haber desviaciones producidas por el corte térmico así como deformaciones plásticas del suministro. Deberá realizar las correcciones necesarias bien por: Enderezado por calor, enderezado en prensa.","MEC-TCC","£"]
[null,"5.2","Preparación de bordes por procesos térmicos: espesor a soldar, geometría de la unión","TCC","£"]
[null,"5.3","    Realizar biselados por medios mecánicos: amolado, biseladora.","TCC","£"]
[null,"5.4","    Realizar operaciones de mecanizado: TALADRADO  ","MEC ","£"]
[null,"5.5","    Realizar operaciones de mecanizado: ROSCADO","MEC","£"]
[null,"5.6","    Realizar operaciones de mecanizado: ESCARIADO","MEC","£"]
[null,"5.7","    Realizar operaciones de mecanizado: AVELLANADO","TCC","£"]
[null,"5.8","Realizar operaciones de desbaste","MEC","£"]
[null,"5.9","Realizar CILINDRADO de chapas de virolas","MEC","£"]
[null,"5.2","Realizar CURVADO de troncos","TCC","£"]
[null,"5.3","Realizar PLEGADO de chapa en prensa plegadora","TCC","£"]
[null,"5.4","Fabricación de utillaje y plantillas necesarias para el proceso de conformado","TCC","£"]
[null,6,"A-6 Montaje de elementos de calderería, tubería y carpintería metálica"," ","£"]
[null,"6.1","Realizar operaciones básicas de soldadura tanto en proceso TIG, MAG, SMAW, que garanticen una correcta fijación de la unión para que el soldador pueda realizar a unión posteriormente: esta unión deberá cumplir con las especificaciones de los WPS y que garantice la correcta separación y alineamiento de la unión.","SAN-SAP","£"]
[null,"6.2","Realizar operaciones básicas de soldadura  proceso SMAW - TRANSFORMADOR O RECTIFICADOR","SAN-SAP","£"]
[null,"6.3","Realizar operaciones básicas de soldadura  proceso SEMIAUTOMÁTICO - GMAW- FCAW","SAN-SAP","£"]
[null,"6.5","Realizar operaciones básicas de soldadura  proceso GTAW","SAN-SAP","£"]
[null,"6.6","Realizar operaciones básicas de soldadura tanto en proceso TIG, MAG, SMAW, que garanticen una correcta fijación de la unión para que el soldador pueda realizar a unión posteriormente: esta unión deberá cumplir con las especificaciones de los WPS y que garantice la correcta separación y alineamiento de la unión.","SAN-SAP","£"]
[null,7,"A-1 En la oficina técnica y departamento de producción"," ","£"]
[null,"7.1","Mediante planos de fabricación el alumno debe relacionar: Sistemas de representaciones - Secciones roturas- Acotaciones","MONTAJE ","£"]
[null,"7.2","Realizar tareas con los cajetines de materiales de planos constructivos de la empresa: - identificar las piezas normalizadas en los planos: tornillería, accesorios de tubería, perfiles laminados, materiales – Manejar los catálogos de materiales y accesorios. Definiciones de dimensiones, características del material, aceros inoxidable, al carbono, aluminio, etc.","MONTAJE","£"]
[null,"7.3","Diferenciar los diferentes tipos de planos: planos de implantación, de conjunto, ortogonales, despiece, isométricos, P&D, As Built.","MONTAJE","£"]
[null,"7.4","Realizar croquizado de piezas de productos de calderería y tubería","MONTAJE","£"]
[null,8,"A-2 Acopio de materiales y preparación de materiales"," ","£"]
[null,"8.1","Recepción y acopio de materiales atendiendo a las características propias","TCC-MEC","£"]
[null,"8.2","Acondicionamiento del área de trabajo atendiendo a las propiedades de los materiales: aislamientos de apoyo, utillaje y herramientas.","TCC-MEC","£"]
[null,8,"A-6 Montaje de elementos de calderería, tubería y carpintería metálica"," ","£"]
[null,"8.1","Identificar los materiales prefabricados y acopiados atendiendo a las marcas de los planos y especificaciones de fabricación","MONTAJE ","£"]
[null,"8.2","Preparación de bancadas, plantillas, utillaje, esperas o derivados que sirvan para montaje","MONTAJE","£"]
[null,"8.1","Movimiento de cargas conociendo las características como pesos y geometrías de las cargas a mover, para su correcto eslingados e izado","MONTAJE","£"]
[null,"8.2","Manejo de puentes grúa o enganchador de cargas para su montaje. Atendiendo a la seguridad colectiva y personal","MONTAJE","£"]
[null,"8.1","Realizar el replanteos atendiendo a puntos de referencia, coordenadas, elevaciones, etc","MONTAJE","£"]
[null,"8.2","Realizar aplomes, nivelaciones, y las operaciones necesarias, que garanticen el correcto montaje de los elementos atendiendo a la normativa de calidad que recoja las tolerancias. Deberá incluir soportación auxiliar si fuera necesario, además de aplicar un correcto manejo de los elementos de elevación u posicionamiento, tales como grúas, polipastos, tensores, gatos, etc..","MONTAJE","£"]
[null,"8.1","Realizar operaciones de uniones soldadas y si es necesario utilizar utillaje como tensores, polipastos, gatos, etc.","MONTAJE","£"]
[null,"8.2","Conocimiento de los tipos de elementos de elevación auxiliar tales como andamios y carretillas elevadoras","MONTAJE","£"]
[null,"8.1","Realizar pruebas de estanquidad que garanticen los marcados CE o los estándares de calidad requeridos","MONTAJE","£"]
[null,"8.2","Conocimiento de los tratamientos superficiales que garantice el servicios y eviten la oxidación tales como: acabados de pintura, galvanizados, etc.","MONTAJE","£"]
[null,"8.1","Realizar operaciones básicas de soldadura tanto en proceso TIG, MAG, SMAW, que garanticen una correcta fijación de la unión para que el soldador pueda realizar a unión posteriormente: esta unión deberá cumplir con las especificaciones de los WPS y que garantice la correcta separación y alineamiento de la unión.","MONTAJE - SOLDADURA","£"]
[null,"8.2","Realizar operaciones con proceso SAW, teniendo en cuanta las variables del proceso","SAP","£"]
[null,"8.1","Realizar operaciones básicas de soldadura tanto en proceso TIG, MAG, SMAW, que garanticen una correcta fijación de la unión para que el soldador pueda realizar a unión posteriormente: esta unión deberá cumplir con las especificaciones de los WPS y que garantice la correcta separación y alineamiento de la unión.","MONTAJE - SOLDADURA","£"]
[null,"8.2","Realizar operaciones con proceso SAW, teniendo en cuanta las variables del proceso","SAP","£"]

{"sheet":"Hoja11","index":11,"n_rows":0,"n_cols":0,"rows_kept":0,"cut":false,"hidden":false,"merged":[]}

{"sheet":"Chek List-EMPSE GROUP","index":12,"n_rows":79,"n_cols":8,"rows_kept":79,"cut":false,"hidden":false,"merged":[[5,6,5,7]]}
[null,"FP-DUAL CICLO FORMATIVO DE GRADO MEDIO DE SOLDADURA Y CALDERERÍA"]
[null,"Check List",null,"Porcentaje completado",{"$f":"porcentaje(CheckList)","v":0}]
[]
[null,"#","Elemento a comprobar\n(doble clic para expandir/colapsar)","Descripciones","Estado\n(doble clic para activar)"]
[]
[null,1,"A-1 En la oficina técnica y departamento de producción"," ","£",null,"ACTIVIDADES EMPRESA "]
[null,"1.2","Realizar tareas con los cajetines de materiales de planos constructivos de la empresa: - identificar las piezas normalizadas en los planos: tornillería, accesorios de tubería, perfiles laminados, materiales – Manejar los catálogos de materiales y accesorios. Definiciones de dimensiones, características del material, aceros inoxidable, al carbono, aluminio, etc.","MEC - TCC","£",null,"A:1 Completa","A:7 Completa"]
[null,"1.4","Realizar croquizado de piezas de productos de calderería y tubería","TCC","£",null,"A:2 Completa","A:8 Completa"]
[null,null,null,null,null,null,"A:3 Completa"]
[null,2,"A-2 Acopio de materiales y preparación de materiales"," ","£",null,"A:4 Completa"]
[null,"2.1","Identificar el material según sus características y formas comerciales","MEC","£",null,"A:5 Completa"]
[null,"2.2","Recepción y acopio de materiales atendiendo a las características propias","TCC - MEC","£"]
[null,"2.3","Acondicionamiento del área de trabajo atendiendo a las propiedades de los materiales: aislamientos de apoyo, utillaje y herramientas.","MEC-TCC-SAN","£",null,"Ir a Principal"]
[null,"2.4","Preparación de las piezas teniendo en cuenta los volúmenes y medios de transporte","MEC","£"]
[]
[null,3,"A-3 Trazado y corte"," ","£"]
[null,"3.1"," Identificar el material según sus características y formas comerciales","TCC","£"]
[null,"3.2"," Realizar los trazados necesarios para obtener los productos deseados","TCC","£"]
[null,"3.3","A partir de una chapa plana ser capaz de obtener el producto necesario corriendo las desviaciones de escuadrado o defectos producidos: este trazado se obtiene en un plano bidemensional","TCC","£"]
[null,"3.4"," A partir de tanto de perfiles comerciales como de tuberías realizar trazados en tres dimensiones: teniendo en cuenta el proceso de corte a utilizar deberá tener en cuenta la sangría o grueso derivado del proceso de corte","TCC","£"]
[]
[null,"4","A-4 Operar con equipos de corte térmico tanto manuales, como automáticos"," ","£"]
[null,"4.1","Preparar el equipo de oxicorte manual teniendo en cuenta: la naturaleza del material, el espesor de la pieza.","OXICORTE - SOPLETE","£"]
[null,"4.2","Preparara un equipo de plasma teniendo en cuenta las variables derivadas de: tipo de material, presiones,","EQUIPO DE PLASMA","£"]
[null,"4.3","Preparar un equipo de oxicorte semiautomático regulando: velocidades de avance, presiones","OXICORTE - TANAKA","£"]
[null,"4.4","Preparar todas las medidas de protección tanto colectiva como individual","TCC-MEC","£"]
[null,"4.5","Preparar equipo de corte por control numérico, introduciendo los parámetros determinados para obtener las piezas necesarias optimizando el material.","CORTE POR CNC","£"]
[null,"4.61","    Preparar equipos de corte mecánico o corte frío: CIZALLA","MEC","£"]
[null,"4.62","    Preparar equipos de corte mecánico o corte frío: SIERRA DE CINTA","TCC","£"]
[null,"4.63","    Preparar equipos de corte mecánico o corte frío: TRONZONADORA","TCC","£"]
[null,"4.64","    Preparar equipos de corte mecánico o corte frío:  PUNZONADORA","TCC","£"]
[null,"4.65","    Preparar equipos de corte mecánico o corte frío: AMOLADORA O RADIAL - ANGULAR","MEC","£"]
[null,"4.11","Marcado de los productos obtenidos en base a las especificaciones de los planos y en caso de requisitos de calidad la colada para la trazabilidad.","TCC","£"]
[null,"4.12","Realizar las operaciones de corte térmico a partir de los trazados obtenidos: teniendo en cuenta las deformaciones y defectos, derivados del proceso.","TCC","£"]
[null,"4.13","Realizar operaciones de corte térmico con plasma a partir de los trazados obtenidos: teniendo en cuenta las deformaciones y defectos, derivados del proceso.","TCC","£"]
[null,"4.14","Realizar operaciones de corte por control numérico introduciendo el lenguaje de programación y aplicando los parámetros necesarios para obtener el producto deseado.","TCC","£"]
[null,"4.15","Realizar operaciones de corte mecánico tanto en: sierra de cinta, cizalla, tronzadora, amoladora. Teniendo en cuenta los defectos y calidad de acabado requeridos.","MEC","£"]
[null,"4.16","Marcado de los productos obtenidos en base a las especificaciones de los planos y en caso de requisitos de calidad la colada para la trazabilidad.","TCC","£"]
[]
[null,"5","A-5 Mecanizado y conformado de chapas, perfiles y tubería"," ","£"]
[null,"5.1","A partir de los productos obtenidos de corte, el alumnado debe verificar los productos obtenidos y en caso de haber desviaciones producidas por el corte térmico así como deformaciones plásticas del suministro. Deberá realizar las correcciones necesarias bien por: Enderezado por calor, enderezado en prensa.","MEC-TCC","£"]
[null,"5.2","Preparación de bordes por procesos térmicos: espesor a soldar, geometría de la unión","TCC","£"]
[null,"5.3","    Realizar biselados por medios mecánicos: amolado, biseladora.","TCC","£"]
[null,"5.4","    Realizar operaciones de mecanizado: TALADRADO  ","MEC ","£"]
[null,"5.5","    Realizar operaciones de mecanizado: ROSCADO","MEC","£"]
[null,"5.6","    Realizar operaciones de mecanizado: ESCARIADO","MEC","£"]
[null,"5.7","    Realizar operaciones de mecanizado: AVELLANADO","TCC","£"]
[null,"5.8","Realizar operaciones de desbaste","MEC","£"]
[null,"5.9","Realizar CILINDRADO de chapas de virolas","MEC","£"]
[null,"5.2","Realizar CURVADO de troncos","TCC","£"]
[null,"5.3","Realizar PLEGADO de chapa en prensa plegadora","TCC","£"]
[null,"5.4","Fabricación de utillaje y plantillas necesarias para el proceso de conformado","TCC","£"]
[null,6,"A-6 Montaje de elementos de calderería, tubería y carpintería metálica"," ","£"]
[null,"6.1","Realizar operaciones básicas de soldadura tanto en proceso TIG, MAG, SMAW, que garanticen una correcta fijación de la unión para que el soldador pueda realizar a unión posteriormente: esta unión deberá cumplir con las especificaciones de los WPS y que garantice la correcta separación y alineamiento de la unión.","SAN-SAP","£"]
[null,"6.2","Realizar operaciones básicas de soldadura  proceso SMAW - TRANSFORMADOR O RECTIFICADOR","SAN-SAP","£"]
[null,"6.3","Realizar operaciones básicas de soldadura  proceso SEMIAUTOMÁTICO - GMAW- FCAW","SAN-SAP","£"]
[null,"6.5","Realizar operaciones básicas de soldadura  proceso GTAW","SAN-SAP","£"]
[null,"6.6","Realizar operaciones básicas de soldadura tanto en proceso TIG, MAG, SMAW, que garanticen una correcta fijación de la unión para que el soldador pueda realizar a unión posteriormente: esta unión deberá cumplir con las especificaciones de los WPS y que garantice la correcta separación y alineamiento de la unión.","SAN-SAP","£"]
[null,7,"A-1 En la oficina técnica y departamento de producción"," ","£"]
[null,"7.1","Mediante planos de fabricación el alumno debe relacionar: Sistemas de representaciones - Secciones roturas- Acotaciones","MONTAJE ","£"]
[null,"7.2","Realizar tareas con los cajetines de materiales de planos constructivos de la empresa: - identificar las piezas normalizadas en los planos: tornillería, accesorios de tubería, perfiles laminados, materiales – Manejar los catálogos de materiales y accesorios. Definiciones de dimensiones, características del material, aceros inoxidable, al carbono, aluminio, etc.","MONTAJE","£"]
[null,"7.3","Diferenciar los diferentes tipos de planos: planos de implantación, de conjunto, ortogonales, despiece, isométricos, P&D, As Built.","MONTAJE","£"]
[null,"7.4","Realizar croquizado de piezas de productos de calderería y tubería","MONTAJE","£"]
[null,8,"A-2 Acopio de materiales y preparación de materiales"," ","£"]
[null,"8.1","Recepción y acopio de materiales atendiendo a las características propias","TCC-MEC","£"]
[null,"8.2","Acondicionamiento del área de trabajo atendiendo a las propiedades de los materiales: aislamientos de apoyo, utillaje y herramientas.","TCC-MEC","£"]
[null,8,"A-6 Montaje de elementos de calderería, tubería y carpintería metálica"," ","£"]
[null,"8.1","Identificar los materiales prefabricados y acopiados atendiendo a las marcas de los planos y especificaciones de fabricación","MONTAJE ","£"]
[null,"8.2","Preparación de bancadas, plantillas, utillaje, esperas o derivados que sirvan para montaje","MONTAJE","£"]
[null,"8.1","Movimiento de cargas conociendo las características como pesos y geometrías de las cargas a mover, para su correcto eslingados e izado","MONTAJE","£"]
[null,"8.2","Manejo de puentes grúa o enganchador de cargas para su montaje. Atendiendo a la seguridad colectiva y personal","MONTAJE","£"]
[null,"8.1","Realizar el replanteos atendiendo a puntos de referencia, coordenadas, elevaciones, etc","MONTAJE","£"]
[null,"8.2","Realizar aplomes, nivelaciones, y las operaciones necesarias, que garanticen el correcto montaje de los elementos atendiendo a la normativa de calidad que recoja las tolerancias. Deberá incluir soportación auxiliar si fuera necesario, además de aplicar un correcto manejo de los elementos de elevación u posicionamiento, tales como grúas, polipastos, tensores, gatos, etc..","MONTAJE","£"]
[null,"8.1","Realizar operaciones de uniones soldadas y si es necesario utilizar utillaje como tensores, polipastos, gatos, etc.","MONTAJE","£"]
[null,"8.2","Conocimiento de los tipos de elementos de elevación auxiliar tales como andamios y carretillas elevadoras","MONTAJE","£"]
[null,"8.1","Realizar pruebas de estanquidad que garanticen los marcados CE o los estándares de calidad requeridos","MONTAJE","£"]
[null,"8.2","Conocimiento de los tratamientos superficiales que garantice el servicios y eviten la oxidación tales como: acabados de pintura, galvanizados, etc.","MONTAJE","£"]
[null,"8.1","Realizar operaciones básicas de soldadura tanto en proceso TIG, MAG, SMAW, que garanticen una correcta fijación de la unión para que el soldador pueda realizar a unión posteriormente: esta unión deberá cumplir con las especificaciones de los WPS y que garantice la correcta separación y alineamiento de la unión.","MONTAJE - SOLDADURA","£"]
[null,"8.2","Realizar operaciones con proceso SAW, teniendo en cuanta las variables del proceso","SAP","£"]

{"sheet":"Chek List-AZERTO","index":13,"n_rows":79,"n_cols":8,"rows_kept":79,"cut":false,"hidden":false,"merged":[[5,6,5,7]]}
[null,"FP-DUAL CICLO FORMATIVO DE GRADO MEDIO DE SOLDADURA Y CALDERERÍA"]
[null,"Check List",null,"Porcentaje completado",{"$f":"porcentaje(CheckList)","v":0}]
[]
[null,"#","Elemento a comprobar\n(doble clic para expandir/colapsar)","Descripciones","Estado\n(doble clic para activar)"]
[]
[null,1,"A-1 En la oficina técnica y departamento de producción"," ","£",null,"ACTIVIDADES EMPRESA "]
[null,"1.2","Realizar tareas con los cajetines de materiales de planos constructivos de la empresa: - identificar las piezas normalizadas en los planos: tornillería, accesorios de tubería, perfiles laminados, materiales – Manejar los catálogos de materiales y accesorios. Definiciones de dimensiones, características del material, aceros inoxidable, al carbono, aluminio, etc.","MEC - TCC","£",null,"A:1 Completa","A:7 Completa"]
[null,"1.4","Realizar croquizado de piezas de productos de calderería y tubería","TCC","£",null,"A:2 Completa","A:8 Completa"]
[null,null,null,null,null,null,"A:3 Completa"]
[null,2,"A-2 Acopio de materiales y preparación de materiales"," ","£",null,"A:4 Completa"]
[null,"2.1","Identificar el material según sus características y formas comerciales","MEC","£",null,"A:5 Completa"]
[null,"2.2","Recepción y acopio de materiales atendiendo a las características propias","TCC - MEC","£"]
[null,"2.3","Acondicionamiento del área de trabajo atendiendo a las propiedades de los materiales: aislamientos de apoyo, utillaje y herramientas.","MEC-TCC-SAN","£",null,"Ir a Principal"]
[null,"2.4","Preparación de las piezas teniendo en cuenta los volúmenes y medios de transporte","MEC","£"]
[]
[null,3,"A-3 Trazado y corte"," ","£"]
[null,"3.1"," Identificar el material según sus características y formas comerciales","TCC","£"]
[null,"3.2"," Realizar los trazados necesarios para obtener los productos deseados","TCC","£"]
[null,"3.3","A partir de una chapa plana ser capaz de obtener el producto necesario corriendo las desviaciones de escuadrado o defectos producidos: este trazado se obtiene en un plano bidemensional","TCC","£"]
[null,"3.4"," A partir de tanto de perfiles comerciales como de tuberías realizar trazados en tres dimensiones: teniendo en cuenta el proceso de corte a utilizar deberá tener en cuenta la sangría o grueso derivado del proceso de corte","TCC","£"]
[]
[null,"4","A-4 Operar con equipos de corte térmico tanto manuales, como automáticos"," ","£"]
[null,"4.1","Preparar el equipo de oxicorte manual teniendo en cuenta: la naturaleza del material, el espesor de la pieza.","OXICORTE - SOPLETE","£"]
[null,"4.2","Preparara un equipo de plasma teniendo en cuenta las variables derivadas de: tipo de material, presiones,","EQUIPO DE PLASMA","£"]
[null,"4.3","Preparar un equipo de oxicorte semiautomático regulando: velocidades de avance, presiones","OXICORTE - TANAKA","£"]
[null,"4.4","Preparar todas las medidas de protección tanto colectiva como individual","TCC-MEC","£"]
[null,"4.5","Preparar equipo de corte por control numérico, introduciendo los parámetros determinados para obtener las piezas necesarias optimizando el material.","CORTE POR CNC","£"]
[null,"4.61","    Preparar equipos de corte mecánico o corte frío: CIZALLA","MEC","£"]
[null,"4.62","    Preparar equipos de corte mecánico o corte frío: SIERRA DE CINTA","TCC","£"]
[null,"4.63","    Preparar equipos de corte mecánico o corte frío: TRONZONADORA","TCC","£"]
[null,"4.64","    Preparar equipos de corte mecánico o corte frío:  PUNZONADORA","TCC","£"]
[null,"4.65","    Preparar equipos de corte mecánico o corte frío: AMOLADORA O RADIAL - ANGULAR","MEC","£"]
[null,"4.11","Marcado de los productos obtenidos en base a las especificaciones de los planos y en caso de requisitos de calidad la colada para la trazabilidad.","TCC","£"]
[null,"4.12","Realizar las operaciones de corte térmico a partir de los trazados obtenidos: teniendo en cuenta las deformaciones y defectos, derivados del proceso.","TCC","£"]
[null,"4.13","Realizar operaciones de corte térmico con plasma a partir de los trazados obtenidos: teniendo en cuenta las deformaciones y defectos, derivados del proceso.","TCC","£"]
[null,"4.14","Realizar operaciones de corte por control numérico introduciendo el lenguaje de programación y aplicando los parámetros necesarios para obtener el producto deseado.","TCC","£"]
[null,"4.15","Realizar operaciones de corte mecánico tanto en: sierra de cinta, cizalla, tronzadora, amoladora. Teniendo en cuenta los defectos y calidad de acabado requeridos.","MEC","£"]
[null,"4.16","Marcado de los productos obtenidos en base a las especificaciones de los planos y en caso de requisitos de calidad la colada para la trazabilidad.","TCC","£"]
[]
[null,"5","A-5 Mecanizado y conformado de chapas, perfiles y tubería"," ","£"]
[null,"5.1","A partir de los productos obtenidos de corte, el alumnado debe verificar los productos obtenidos y en caso de haber desviaciones producidas por el corte térmico así como deformaciones plásticas del suministro. Deberá realizar las correcciones necesarias bien por: Enderezado por calor, enderezado en prensa.","MEC-TCC","£"]
[null,"5.2","Preparación de bordes por procesos térmicos: espesor a soldar, geometría de la unión","TCC","£"]
[null,"5.3","    Realizar biselados por medios mecánicos: amolado, biseladora.","TCC","£"]
[null,"5.4","    Realizar operaciones de mecanizado: TALADRADO  ","MEC ","£"]
[null,"5.5","    Realizar operaciones de mecanizado: ROSCADO","MEC","£"]
[null,"5.6","    Realizar operaciones de mecanizado: ESCARIADO","MEC","£"]
[null,"5.7","    Realizar operaciones de mecanizado: AVELLANADO","TCC","£"]
[null,"5.8","Realizar operaciones de desbaste","MEC","£"]
[null,"5.9","Realizar CILINDRADO de chapas de virolas","MEC","£"]
[null,"5.2","Realizar CURVADO de troncos","TCC","£"]
[null,"5.3","Realizar PLEGADO de chapa en prensa plegadora","TCC","£"]
[null,"5.4","Fabricación de utillaje y plantillas necesarias para el proceso de conformado","TCC","£"]
[null,6,"A-6 Montaje de elementos de calderería, tubería y carpintería metálica"," ","£"]
[null,"6.1","Realizar operaciones básicas de soldadura tanto en proceso TIG, MAG, SMAW, que garanticen una correcta fijación de la unión para que el soldador pueda realizar a unión posteriormente: esta unión deberá cumplir con las especificaciones de los WPS y que garantice la correcta separación y alineamiento de la unión.","SAN-SAP","£"]
[null,"6.2","Realizar operaciones básicas de soldadura  proceso SMAW - TRANSFORMADOR O RECTIFICADOR","SAN-SAP","£"]
[null,"6.3","Realizar operaciones básicas de soldadura  proceso SEMIAUTOMÁTICO - GMAW- FCAW","SAN-SAP","£"]
[null,"6.5","Realizar operaciones básicas de soldadura  proceso GTAW","SAN-SAP","£"]
[null,"6.6","Realizar operaciones básicas de soldadura tanto en proceso TIG, MAG, SMAW, que garanticen una correcta fijación de la unión para que el soldador pueda realizar a unión posteriormente: esta unión deberá cumplir con las especificaciones de los WPS y que garantice la correcta separación y alineamiento de la unión.","SAN-SAP","£"]
[null,7,"A-1 En la oficina técnica y departamento de producción"," ","£"]
[null,"7.1","Mediante planos de fabricación el alumno debe relacionar: Sistemas de representaciones - Secciones roturas- Acotaciones","MONTAJE ","£"]
[null,"7.2","Realizar tareas con los cajetines de materiales de planos constructivos de la empresa: - identificar las piezas normalizadas en los planos: tornillería, accesorios de tubería, perfiles laminados, materiales – Manejar los catálogos de materiales y accesorios. Definiciones de dimensiones, características del material, aceros inoxidable, al carbono, aluminio, etc.","MONTAJE","£"]
[null,"7.3","Diferenciar los diferentes tipos de planos: planos de implantación, de conjunto, ortogonales, despiece, isométricos, P&D, As Built.","MONTAJE","£"]
[null,"7.4","Realizar croquizado de piezas de productos de calderería y tubería","MONTAJE","£"]
[null,8,"A-2 Acopio de materiales y preparación de materiales"," ","£"]
[null,"8.1","Recepción y acopio de materiales atendiendo a las características propias","TCC-MEC","£"]
[null,"8.2","Acondicionamiento del área de trabajo atendiendo a las propiedades de los materiales: aislamientos de apoyo, utillaje y herramientas.","TCC-MEC","£"]
[null,8,"A-6 Montaje de elementos de calderería, tubería y carpintería metálica"," ","£"]
[null,"8.1","Identificar los materiales prefabricados y acopiados atendiendo a las marcas de los planos y especificaciones de fabricación","MONTAJE ","£"]
[null,"8.2","Preparación de bancadas, plantillas, utillaje, esperas o derivados que sirvan para montaje","MONTAJE","£"]
[null,"8.1","Movimiento de cargas conociendo las características como pesos y geometrías de las cargas a mover, para su correcto eslingados e izado","MONTAJE","£"]
[null,"8.2","Manejo de puentes grúa o enganchador de cargas para su montaje. Atendiendo a la seguridad colectiva y personal","MONTAJE","£"]
[null,"8.1","Realizar el replanteos atendiendo a puntos de referencia, coordenadas, elevaciones, etc","MONTAJE","£"]
[null,"8.2","Realizar aplomes, nivelaciones, y las operaciones necesarias, que garanticen el correcto montaje de los elementos atendiendo a la normativa de calidad que recoja las tolerancias. Deberá incluir soportación auxiliar si fuera necesario, además de aplicar un correcto manejo de los elementos de elevación u posicionamiento, tales como grúas, polipastos, tensores, gatos, etc..","MONTAJE","£"]
[null,"8.1","Realizar operaciones de uniones soldadas y si es necesario utilizar utillaje como tensores, polipastos, gatos, etc.","MONTAJE","£"]
[null,"8.2","Conocimiento de los tipos de elementos de elevación auxiliar tales como andamios y carretillas elevadoras","MONTAJE","£"]
[null,"8.1","Realizar pruebas de estanquidad que garanticen los marcados CE o los estándares de calidad requeridos","MONTAJE","£"]
[null,"8.2","Conocimiento de los tratamientos superficiales que garantice el servicios y eviten la oxidación tales como: acabados de pintura, galvanizados, etc.","MONTAJE","£"]
[null,"8.1","Realizar operaciones básicas de soldadura tanto en proceso TIG, MAG, SMAW, que garanticen una correcta fijación de la unión para que el soldador pueda realizar a unión posteriormente: esta unión deberá cumplir con las especificaciones de los WPS y que garantice la correcta separación y alineamiento de la unión.","MONTAJE - SOLDADURA","£"]
[null,"8.2","Realizar operaciones con proceso SAW, teniendo en cuanta las variables del proceso","SAP","£"]